Workbook

Sheet DADOS
A1: 27476 | B1: PO - Planilha Orçamentária / PLQ - Planilha de Levantamento de Quantidades / CFF - Cronograma Físico Financeiro
A2: v008
A4: INSTRUÇÕES DE USO E PREENCHIMENTO
A6: 1. Este documento somente pode ser utilizado nas versões do Excel 2003 ou superior. Não deve ser utilizado versões do BROffice. O Documento deve ser salvo SOMENTE em extensão habilitada para macros (.xls ou .xlsm). Se o documento for salvo na extensão .xlsx, o arquivo será INUTILIZADO.
A8: 2. Para funcionamento pleno desse arquivo, a Segurança de Macros do Excel deve ser habilitada.
A10: 2.1 Na Versão Excel 2003, selecione na Faixa de Opções: Ferramentas --> Macro --> Segurança --> Na aba Nível de Segurança selecione a Opção "Baixo" --> Clique em OK --> Feche e abra o Excel novamente para utilizar a Planilha.
A12: 2.2 Na Versão Excel 2007 ou superior, selecione na Faixa de Opções: Arquivo --> Opções --> Central de Confiabilidade --> Configurações da Central de Confiabilidade --> Configurações de Macro --> Habilitar todas as Macros --> Clique em OK --> Feche e abra o excel novamente para utilizar a Planilha.
A14: 3. O Preenchimento deve ser feito somente nas células em amarelo. As outras células são de preenchimento Automático.
A16: 4. Preferências de Elaboração do Orçamento
A18: 4.1. Preenchimento de Quantidades
A22: 5. Ordem de Preenchimento
A24: 5.1. na Aba DADOS
A26: 5.1.1. Preencha no Quadro abaixo os Dados do TC/CR:
A28: Nº OPERAÇÃO | C28: GESTOR | F28: PROGRAMA | J28: AÇÃO / MODALIDADE | P28: OBJETO
A29: 1.037.474-20/2017 | C29: Ministerio das Cidades | F29: Planejamento Urbano | J29: Contrato de repasse | P29: Implantação de pavimentação asfaltica em vias urbanas do Município de Bom Jesus SC.
A31: PROPONENTE / TOMADOR | G31: MUNICÍPIO / UF | K31: LOCALIDADE / ENDEREÇO | Q31: APELIDO DO EMPREENDIMENTO
A32: Município de Bom Jesus | G32: Bom Jesus / SC | K32: Rua Domingos Michelin
A35: 5.1.2. Preencha no quadro abaixo as informações sobre o orçamento:
A37: DATA BASE | C37: DESON. | D37: LOCALIDADE DO SINAPI | G37: DESCRIÇÃO DO LOTE | T37: BDI 1 | U37: BDI 2 | V37: BDI 3 | W37: BDI 4 | X37: BDI 5
A38: 2017-08-01 | C38: Não | D38: Florianópolis / SC | G38: Lote 01 | T38: =IF(ISERROR(INDIRECT("'BDI ("&RIGHT(T37,1)&")'!N27")),"",INDIRECT("'BDI ("&RIGHT(T37,1)&")'!N27")) -> 0.22 | U38: =IF(ISERROR(INDIRECT("'BDI ("&RIGHT(U37,1)&")'!N27")),"",INDIRECT("'BDI ("&RIGHT(U37,1)&")'!N27")) ->  | V38: =IF(ISERROR(INDIRECT("'BDI ("&RIGHT(V37,1)&")'!N27")),"",INDIRECT("'BDI ("&RIGHT(V37,1)&")'!N27")) ->  | W38: =IF(ISERROR(INDIRECT("'BDI ("&RIGHT(W37,1)&")'!N27")),"",INDIRECT("'BDI ("&RIGHT(W37,1)&")'!N27")) ->  | X38: =IF(ISERROR(INDIRECT("'BDI ("&RIGHT(X37,1)&")'!N27")),"",INDIRECT("'BDI ("&RIGHT(X37,1)&")'!N27")) -> 
A40: 4.1.2. Preencha no quadro abaixo as informações sobre o orçamento licitado:
A42: CTEF n.º | C42: NOME DA EMPRESA | H42: DATA BASE | J42: DESON. | K42: REGIME DE EXECUÇÃO | N42: ACOMP. | O42: OBJETO CTEF | U42: DATA ASSINATURA | W42: VIGÊNCIA
A45: 5.1.3. Preencha a data de Início da Obra:
A47: DATA INÍCIO
A48: 2017-12-01
A50: 5.1.4. Preencha no(s) Quadro(s) abaixo os Dados do(s) Responsável(is) Técnico(s) pela elaboração do Orçamento:
G52: Exibir o 2° Quadro de Assinatura? | K52: NÃO
A54: Nome: | B54: Alexandre Bée Longhi | G54: Nome:
A55: =IF(OR(TipoOrçamento="BASE",TipoOrçamento="REPROGRAMADONPL"),"Título:","Cargo:") -> Título: | B55: Engenheiro Civil | G55: =A55 -> Título:
A56: =IF(OR(TipoOrçamento="BASE",TipoOrçamento="REPROGRAMADONPL"),"CREA/CAU:","Empresa:") -> CREA/CAU: | B56: 098.740-6 | G56: =A56 -> CREA/CAU:
A57: =IF(OR(TipoOrçamento="BASE",TipoOrçamento="REPROGRAMADONPL"),"ART/RRT:","CNPJ:") -> ART/RRT: | B57: 6328923-5 | G57: =A57 -> ART/RRT:
A60: 5.2. Legenda das Abas
A62: 5.2.1. LARANJA: Aba DADOS. Preenchimento Obrigatório. Impressão Dispensada.
A63: 5.2.2. AMARELO: Abas BDI, PO, PLQ e CFF. Preenchimento e Impressão Obrigatórias. O preenchimento da Aba BDI é dispensada para os casos de Aquisição Direta de Materiais e Equipamentos. A Impressão da Aba PLQ pode ser dispensada para casos de Frente de Obra Única.
A65: 5.3. na Aba BDI (Bonificações e Despesas Indiretas):
A67: 5.3.1. Escolha o tipo de empreendimento.
A68: 5.3.2. Escolha se o BDI será do tipo desonerado ou não (aba DADOS)
A69: 5.3.3. Informe a base de cálculo do ISS (0 a 100%).
A70: 5.3.4. Informe a alíquota do ISS (Normalmente de 2 a 5%).
A71: 5.3.5. Defina na tabela os percentuais a serem adotados para cada item que compõe o BDI nos campos em amarelo.
A72: 5.3.6. Preencha o campo observações se necessário (recomendado para os orçamentos que utilizam mais de um BDI).
A74: 5.4. na Aba PO (Planilha Orçamentária):
A76: 5.4.1. Primeiramente, selecione os níveis de cada item do orçamento na coluna NÍVEL.
A77: 5.4.1.1: O nível de "Serviço" serve tanto para serviços ou insumos (mão-de-obra / material / equipamento / veículo / máquina / ferramenta / etc). Um "nível 2/3/4" é um título (é preenchida apenas a coluna descrição) utilizado para organizar melhor a planilha orçamentária e engloba (agrupa) serviços e agrupadores de nível inferior.
A78: 5.4.2. Após a seleção dos níveis, preencha, para cada serviço, as informações sobre a Fonte de Referência, (SINAPI, SICRO, SIURB, etc) e o respectivo Código de Referência.
A79: 5.4.3. Esta planilha é compatível com o arquivo REFERÊNCIA distribuído pela CAIXA. Caso o arquivo REFERÊNCIA esteja aberto, será possível buscar um código através do botão "Buscar Código". Desta forma a descrição dos serviços será preenchida automaticamente (podendo ser substituída). Caso contrário, seu preenchimento deve ser manual.
A80: 5.4.3.1. As descrições e unidades preenchidas automaticamente ficarão vinculadas ao arquivo REFERÊNCIA até que se use o botão "Fixar Descrições", que quebra a fórmula e transforma as descrições em texto.
A81: 5.4.4. Preencher o custo unitário do serviço/insumo na Coluna CUSTO UNITÁRIO. ATENÇÃO: o custo unitário adotado deve ser menor ou igual ao contido na tabela de referência ou mediana das cotações de mercado.
A82: 5.4.5. Indicar o BDI adotado para cada serviço/insumo na Coluna BDI. Preferencialmente selecione uma das opções da lista suspensa que aparecerá na célula, esta lista contém os 05 BDIs que podem ser preenchidos na Aba BDI (conforme item 5.2 das instruções). Caso seja necessária a adoção de mais de 05 valores diferentes de BDI, digite o percentual diretamente na célula.
A83: 5.4.6. Conforme selecionado no item 4.1. desta Aba, a Coluna Quantidade pode ser preenchida diretamente na PO, ou representar a soma das quantidades de cada Frente de Obra, informadas na aba PLQ (Planilha de Levantamento de Quantitativos).
A84: 5.4.7. OBSERVAÇÃO: As demais colunas (Item / Quantidade / Preço Unitário / Preço Total) são de preenchimento automático. Não tente preenche-las ou alterá-las na Aba PO.
A85: 5.4.8. Se for necessário acrescentar ou excluir linhas da Planilha Orçamentária, utilize o Botão EDITAR PLANILHA e selecione as opções no quadro. ATENÇÃO: quanto maior o número de linhas mais lento será o processamento dos dados, então acrescente apenas o número necessário ou um pouco a mais.
A86: 5.4.8.1. Evite deixar linhas em branco no corpo da Planilha Orçamentária.
A87: 5.4.9. Caso deseje importar os dados de outro arquivo utilize apenas a opção COLAR ESPECIAL ==> VALORES.
A88: 5.4.10. Clique no Botão LICITAR / REPROGRAMAR para preencher o Orçamento Licitado ou Reprogramado.
A90: 5.5. na Aba PLQ (Planilha de Levantamento de Quantitativos):
A92: 5.5.1. Preencha primeiramente as Frentes de Obra.
A93: 5.5.1.1. Exemplos de Frentes de Obra (Rua A trecho 01 / Rua A trecho 02 / Rua B ; UH 01 / UH 02 / UH 03).
A94: 5.5.2. Preencha as quantidades dos serviços por frente de obra. A soma das quantidades de todas as frentes de um determinado serviço será a quantidade exibida na Planilha Orçamentária.
A95: 5.5.3. Caso deseje incluir ou excluir frentes, utilize os botões ADICIONAR e EXCLUIR.
A97: 5.6. na Aba CFF (Cronograma Físico-Financeiro):
A99: 5.6.1. Preencha a data de início da obra na aba Dados.
A100: 5.6.2. Preencha as porcentagens previstas por parcela para cada meta ou macrosserviço.
A101: 5.6.3. Para atualizar o Cronograma conforme o Orçamento e incluir ou excluir parcelas, utilize o botão EDITAR / ATUALIZAR CRONOGRAMA.
L107: (Selecione uma Localidade)
L108: Aracaju / SE | S108: =T38 -> 0.22
L109: Belém / PA | S109: =U38 -> 
L110: Belo Horizonte / MG | S110: =V38 -> 
L111: Boa Vista / RR | S111: =W38 -> 
L112: Brasília / DF | S112: =X38 -> 
L113: Campo Grande / MS
L114: Cuiabá / MT
L115: Curitiba / PR | P115: Empreitada Preço Global
L116: Florianópolis / SC | P116: Empreitada Preço Unitário
L117: Fortaleza / CE | P117: Empreitada Integral
L118: Goiânia / GO | P118: Tarefa
L119: João Pessoa / PB | P119: Contratação Integrada
L120: Macapá / AP | P120: Não se aplica
L121: Maceió / AL
L122: Manaus / AM | P122: BM
L123: Natal / RN | P123: PLE
L124: Palmas / TO
L125: Porto Alegre / RS
L126: Porto Velho / RO
L127: Recife / PE
L128: Rio Branco / AC
L129: Rio de Janeiro / RJ
L130: Salvador / BA
L131: São Luís / MA
L132: São Paulo / SP
L133: Teresina / PI
L134: Vitória / ES
A220: =A28 -> Nº OPERAÇÃO | C220: =C28 -> GESTOR | F220: =F28 -> PROGRAMA | J220: =J28 -> AÇÃO / MODALIDADE | P220: =P28 -> OBJETO
A221: =IF(A29="","",A29) -> 1.037.474-20/2017 | C221: =IF(C29="","",C29) -> Ministerio das Cidades | F221: =IF(F29="","",F29) -> Planejamento Urbano | J221: =IF(J29="","",J29) -> Contrato de repasse | L221: =IF(#REF!="","",#REF!) ->  | N221: =IF(#REF!="","",#REF!) ->  | P221: =IF(P29="","",P29) -> Implantação de pavimentação asfaltica em vias urbanas do Município de Bom Jesus SC.
A223: =A31 -> PROPONENTE / TOMADOR | G223: =G31 -> MUNICÍPIO / UF | K223: =K31 -> LOCALIDADE / ENDEREÇO | Q223: =Q31 -> APELIDO DO EMPREENDIMENTO
A224: =IF(A32="","",A32) -> Município de Bom Jesus | G224: =IF(G32="","",G32) -> Bom Jesus / SC | H224: =IF(I32="","",I32) ->  | J224: =IF(#REF!="","",#REF!) ->  | K224: =IF(K32="","",K32) -> Rua Domingos Michelin | Q224: =IF(Q32="","",Q32) -> 
A226: =A37 -> DATA BASE | C226: =C37 -> DESON. | D226: =D37 -> LOCALIDADE DO SINAPI | G226: =G37 -> DESCRIÇÃO DO LOTE | T226: =T37 -> BDI 1 | U226: =U37 -> BDI 2 | V226: =V37 -> BDI 3 | W226: =W37 -> BDI 4 | X226: =X37 -> BDI 5
A227: =IF(A38="","",A38) -> 2017-08-01 | C227: =IF(C38="","",C38) -> Não | D227: Florianópolis / SC | G227: Lote 01 | T227: 0.22
A229: CTEF n.º | C229: NOME DA EMPRESA / CNPJ: | H229: DATA BASE | J229: DESON. | K229: REGIME DE EXECUÇÃO | N229: ACOMP. | O229: OBJETO CTEF | U229: DATA ASSINATURA | W229: VIGÊNCIA
A230: =IF(A43="","",A43) ->  | C230: =IF(C43="","",C43) ->  | E230: =IF(E43="","",E43) ->  | G230: =IF(G43="","",G43) ->  | H230: =IF(H43="","",H43) ->  | I230: =IF(I43="","",I43) ->  | J230: =IF(J43="","",J43) ->  | K230: =IF(K43="","",K43) ->  | M230: =IF(M43="","",M43) ->  | N230: =IF(N43="","",N43) ->  | O230: =IF(O43="","",O43) ->  | Q230: =IF(Q43="","",Q43) ->  | S230: =IF(S43="","",S43) ->  | U230: =IF(U43="","",U43) ->  | W230: =IF(W43="","",W43) -> 

Sheet BDI (1)
E1: MIN | F1: MED | G1: MAX | N1: ="Quadro de Composição do BDI "&MID(CELL("nome.arquivo",N1),5+FIND("BDI (",CELL("nome.arquivo",N1)),1) -> Quadro de Composição do BDI 1
A2: Construção e Reforma de Edifícios | B2: AC | C2: =CONCATENATE(A2,"-",B2) -> Construção e Reforma de Edifícios-AC | E2: 0.03 | F2: 0.04 | G2: 0.055
A3: =A2 -> Construção e Reforma de Edifícios | B3: SG | C3: Construção e Reforma de Edifícios-SG | E3: 0.008 | F3: 0.008 | G3: 0.01
A4: =A3 -> Construção e Reforma de Edifícios | B4: R | C4: Construção e Reforma de Edifícios-R | E4: 0.0097 | F4: 0.0127 | G4: 0.0127 | I4: Nº TC/CR | K4: PROPONENTE / TOMADOR
A5: =A4 -> Construção e Reforma de Edifícios | B5: DF | C5: Construção e Reforma de Edifícios-DF | E5: 0.0059 | F5: 0.0123 | G5: 0.0139 | I5: =DADOS!A29 -> 1.037.474-20/2017 | K5: =DADOS!A32 -> Município de Bom Jesus
A6: =A5 -> Construção e Reforma de Edifícios | B6: L | C6: Construção e Reforma de Edifícios-L | E6: 0.0616 | F6: 0.074 | G6: 0.0896
A7: =A6 -> Construção e Reforma de Edifícios | B7: BDI PAD | C7: Construção e Reforma de Edifícios-BDI PAD | E7: 0.2034 | F7: 0.2212 | G7: 0.25 | I7: OBJETO
A8: Construção de Praças Urbanas, Rodovias, Ferrovias e recapeamento e pavimentação de vias urbanas | B8: AC | C8: Construção de Praças Urbanas, Rodovias, Ferrovias e recapeamento e pavimentação de vias urbanas-AC | E8: 0.038 | F8: 0.0401 | G8: 0.0467 | I8: =DADOS!P29 -> Implantação de pavimentação asfaltica em vias urbanas do Município de Bom Jesus SC.
A9: Construção de Praças Urbanas, Rodovias, Ferrovias e recapeamento e pavimentação de vias urbanas | B9: SG | C9: Construção de Praças Urbanas, Rodovias, Ferrovias e recapeamento e pavimentação de vias urbanas-SG | E9: 0.0032 | F9: 0.004 | G9: 0.0074
A10: Construção de Praças Urbanas, Rodovias, Ferrovias e recapeamento e pavimentação de vias urbanas | B10: R | C10: Construção de Praças Urbanas, Rodovias, Ferrovias e recapeamento e pavimentação de vias urbanas-R | E10: 0.005 | F10: 0.0056 | G10: 0.0097 | I10: TIPO DE OBRA DO EMPREENDIMENTO | Q10: DESONERAÇÃO
A11: Construção de Praças Urbanas, Rodovias, Ferrovias e recapeamento e pavimentação de vias urbanas | B11: DF | C11: Construção de Praças Urbanas, Rodovias, Ferrovias e recapeamento e pavimentação de vias urbanas-DF | E11: 0.0102 | F11: 0.0111 | G11: 0.0121 | I11: Construção de Praças Urbanas, Rodovias, Ferrovias e recapeamento e pavimentação de vias urbanas | Q11: =DADOS!$C$38 -> Não
A12: Construção de Praças Urbanas, Rodovias, Ferrovias e recapeamento e pavimentação de vias urbanas | B12: L | C12: Construção de Praças Urbanas, Rodovias, Ferrovias e recapeamento e pavimentação de vias urbanas-L | E12: 0.0664 | F12: 0.073 | G12: 0.0869
A13: Construção de Praças Urbanas, Rodovias, Ferrovias e recapeamento e pavimentação de vias urbanas | B13: BDI PAD | C13: Construção de Praças Urbanas, Rodovias, Ferrovias e recapeamento e pavimentação de vias urbanas-BDI PAD | E13: 0.196 | F13: 0.2097 | G13: 0.2423 | I13: Conforme legislação tributária municipal, definir estimativa de percentual da base de cálculo para o ISS: | Q13: 1
A14: Construção de Redes de Abastecimento de Água, Coleta de Esgoto | B14: AC | C14: Construção de Redes de Abastecimento de Água, Coleta de Esgoto-AC | E14: 0.0343 | F14: 0.0493 | G14: 0.0671 | I14: Sobre a base de cálculo, definir a respectiva alíquota do ISS (entre 2% e 5%): | Q14: 0.03
A15: =A14 -> Construção de Redes de Abastecimento de Água, Coleta de Esgoto | B15: SG | C15: Construção de Redes de Abastecimento de Água, Coleta de Esgoto-SG | E15: 0.0028 | F15: 0.0049 | G15: 0.0075
I16: Itens | M16: Siglas | N16: % Adotado | O16: Situação | P16: 1º Quartil | Q16: Médio | R16: 3º Quartil | T16: =IF(V27,"Para BDI fora do intervalo estatístico, deve ser apresentado Relatório Técnico Circunstanciado justificando a adoção do percentual de cada parcela do BDI.","") -> 
A17: =A15 -> Construção de Redes de Abastecimento de Água, Coleta de Esgoto | B17: R | C17: Construção de Redes de Abastecimento de Água, Coleta de Esgoto-R | E17: 0.01 | F17: 0.0139 | G17: 0.0174
A18: =A17 -> Construção de Redes de Abastecimento de Água, Coleta de Esgoto | B18: DF | C18: Construção de Redes de Abastecimento de Água, Coleta de Esgoto-DF | E18: 0.0094 | F18: 0.0099 | G18: 0.0117 | I18: =IF($I$11=$A$59,"Encargos Sociais incidentes sobre a mão de obra","Administração Central") -> Administração Central | M18: =IF($I$11=$A$59,"K1","AC") -> AC | N18: 0.0401 | O18: - | P18: =VLOOKUP(CONCATENATE(I$11,"-",M18),$C$2:$G$49,3,FALSE) -> 0.038 | Q18: =VLOOKUP(CONCATENATE(I$11,"-",M18),$C$2:$G$49,4,FALSE) -> 0.0401 | R18: =VLOOKUP(CONCATENATE(I$11,"-",M18),$C$2:$G$49,5,FALSE) -> 0.0467
A19: =A18 -> Construção de Redes de Abastecimento de Água, Coleta de Esgoto | B19: L | C19: Construção de Redes de Abastecimento de Água, Coleta de Esgoto-L | E19: 0.0674 | F19: 0.0804 | G19: 0.094 | I19: =IF($I$11=$A$59,"Administração Central da empresa ou consultoria - overhead","Seguro e Garantia") -> Seguro e Garantia | M19: =IF($I$11=$A$59,"K2","SG") -> SG | N19: 0.004 | O19: - | P19: =VLOOKUP(CONCATENATE(I$11,"-",M19),$C$2:$G$49,3,FALSE) -> 0.0032 | Q19: =VLOOKUP(CONCATENATE(I$11,"-",M19),$C$2:$G$49,4,FALSE) -> 0.004 | R19: =VLOOKUP(CONCATENATE(I$11,"-",M19),$C$2:$G$49,5,FALSE) -> 0.0074
A20: =A19 -> Construção de Redes de Abastecimento de Água, Coleta de Esgoto | B20: BDI PAD | C20: Construção de Redes de Abastecimento de Água, Coleta de Esgoto-BDI PAD | E20: 0.2076 | F20: 0.2418 | G20: 0.2644 | I20: =IF($I$11=$A$59,"","Risco") -> Risco | M20: =IF($I$11=$A$59,"","R") -> R | N20: 0.0056 | O20: - | P20: =VLOOKUP(CONCATENATE(I$11,"-",M20),$C$2:$G$49,3,FALSE) -> 0.005 | Q20: =VLOOKUP(CONCATENATE(I$11,"-",M20),$C$2:$G$49,4,FALSE) -> 0.0056 | R20: =VLOOKUP(CONCATENATE(I$11,"-",M20),$C$2:$G$49,5,FALSE) -> 0.0097
A21: Construção e Manutenção de Estações e Redes de Distribuição de Energia Elétrica | B21: AC | C21: Construção e Manutenção de Estações e Redes de Distribuição de Energia Elétrica-AC | E21: 0.0529 | F21: 0.0592 | G21: 0.0793 | I21: =IF($I$11=$A$59,"","Despesas Financeiras") -> Despesas Financeiras | M21: =IF($I$11=$A$59,"","DF") -> DF | N21: 0.0111 | O21: - | P21: =VLOOKUP(CONCATENATE(I$11,"-",M21),$C$2:$G$49,3,FALSE) -> 0.0102 | Q21: =VLOOKUP(CONCATENATE(I$11,"-",M21),$C$2:$G$49,4,FALSE) -> 0.0111 | R21: =VLOOKUP(CONCATENATE(I$11,"-",M21),$C$2:$G$49,5,FALSE) -> 0.0121
A22: =A21 -> Construção e Manutenção de Estações e Redes de Distribuição de Energia Elétrica | B22: SG | C22: Construção e Manutenção de Estações e Redes de Distribuição de Energia Elétrica-SG | E22: 0.0025 | F22: 0.0051 | G22: 0.0056 | I22: =IF($I$11=$A$59,"Margem bruta da empresa de consultoria","Lucro") -> Lucro | M22: =IF($I$11=$A$59,"K3","L") -> L | N22: 0.073 | O22: - | P22: =VLOOKUP(CONCATENATE(I$11,"-",M22),$C$2:$G$49,3,FALSE) -> 0.0664 | Q22: =VLOOKUP(CONCATENATE(I$11,"-",M22),$C$2:$G$49,4,FALSE) -> 0.073 | R22: =VLOOKUP(CONCATENATE(I$11,"-",M22),$C$2:$G$49,5,FALSE) -> 0.0869
A23: =A22 -> Construção e Manutenção de Estações e Redes de Distribuição de Energia Elétrica | B23: R | C23: Construção e Manutenção de Estações e Redes de Distribuição de Energia Elétrica-R | E23: 0.01 | F23: 0.0148 | G23: 0.0197 | I23: Tributos (impostos COFINS 3%, e PIS 0,65%) | M23: CP | N23: 0.0365 | O23: - | P23: 0.0365 | Q23: 0.0365 | R23: 0.0365
A24: =A23 -> Construção e Manutenção de Estações e Redes de Distribuição de Energia Elétrica | B24: DF | C24: Construção e Manutenção de Estações e Redes de Distribuição de Energia Elétrica-DF | E24: 0.0101 | F24: 0.0107 | G24: 0.0111 | I24: Tributos (ISS, variável de acordo com o município) | M24: ISS | N24: =IF($I$11<>$A$58,Q14*Q13,0) -> 0.03 | O24: - | P24: 0 | Q24: 0.025 | R24: 0.05
A25: =A24 -> Construção e Manutenção de Estações e Redes de Distribuição de Energia Elétrica | B25: L | C25: Construção e Manutenção de Estações e Redes de Distribuição de Energia Elétrica-L | E25: 0.08 | F25: 0.0831 | G25: 0.0951 | I25: Tributos (Contribuição Previdenciária sobre a Receita Bruta - 0% ou 4,5% - Desoneração) | M25: CPRB | N25: =IF(AND($I$11<>$A$58,Q11="Sim"),4.5%,0%) -> 0 | O25: =IF(AND(N25>=P25, N25<=R25), "OK", "Não OK") -> OK | P25: 0 | Q25: 0.045 | R25: 0.045
A26: =A25 -> Construção e Manutenção de Estações e Redes de Distribuição de Energia Elétrica | B26: BDI PAD | C26: Construção e Manutenção de Estações e Redes de Distribuição de Energia Elétrica-BDI PAD | E26: 0.24 | F26: 0.2584 | G26: 0.2786 | I26: BDI SEM desoneração (Fórmula Acórdão TCU) | M26: BDI PAD | N26: =IF($I$11=$A$58,0,ROUND((((1+N18+N19+N20)*(1+N21)*(1+N22)/(1-(N23+N24)))-1),4)) -> 0.22 | O26: =IF(OR($I$11=$A$59,$I$11=$A$58,AND(N26>=P26, N26<=R26)), "OK", "FORA DO INTERVALO") -> OK | P26: =IF($I$11=$A$58,0,VLOOKUP(CONCATENATE($I$11,"-",$M26),$C$2:$G$49,3,FALSE)) -> 0.196 | Q26: =IF($I$11=$A$58,0,VLOOKUP(CONCATENATE($I$11,"-",$M26),$C$2:$G$49,4,FALSE)) -> 0.2097 | R26: =IF($I$11=$A$58,0,VLOOKUP(CONCATENATE($I$11,"-",$M26),$C$2:$G$49,5,FALSE)) -> 0.2423
A27: Obras Portuárias, Marítimas e Fluviais | B27: AC | C27: Obras Portuárias, Marítimas e Fluviais-AC | E27: 0.04 | F27: 0.0552 | G27: 0.0785 | I27: BDI COM desoneração | M27: BDI DES | N27: =IF($I$11=$A$58,0,ROUND((((1+N18+N19+N20)*(1+N21)*(1+N22)/(1-(N23+N24+N25)))-1),4)) -> 0.22 | O27: =IF(Q11<>"Sim","",O26) ->  | V27: =AND(COUNTA(N18:N23)=6,O26<>"ok",NOT(V29)) -> FALSE | W27: pedir anexo
A28: =A27 -> Obras Portuárias, Marítimas e Fluviais | B28: SG | C28: Obras Portuárias, Marítimas e Fluviais-SG | E28: 0.0081 | F28: 0.0122 | G28: 0.0199
A29: =A28 -> Obras Portuárias, Marítimas e Fluviais | B29: R | C29: Obras Portuárias, Marítimas e Fluviais-R | E29: 0.0146 | F29: 0.0232 | G29: 0.0316 | I29: =IF(V29,"X","") ->  | J29: Anexo: Relatório Técnico Circunstanciado justificando a adoção do percentual de cada parcela do BDI. | V29: FALSE | W29: anexo apresentado
I31: Os valores de BDI foram calculados com o emprego da fórmula:
A32: =A29 -> Obras Portuárias, Marítimas e Fluviais | B32: DF | C32: Obras Portuárias, Marítimas e Fluviais-DF | E32: 0.0094 | F32: 0.0102 | G32: 0.0133 | L32: =IF(Q11="Sim","BDI.DES =","BDI.PAD =") -> BDI.PAD = | M32: =IF($I$11=$A$59,"(1+K1+K2)*(1+K3)","(1+AC + S + R + G)*(1 + DF)*(1+L)") -> (1+AC + S + R + G)*(1 + DF)*(1+L) | P32: - 1
A33: =A32 -> Obras Portuárias, Marítimas e Fluviais | B33: L | C33: Obras Portuárias, Marítimas e Fluviais-L | E33: 0.0714 | F33: 0.084 | G33: 0.1043 | M33: =IF(Q11="Sim","(1-CP-ISS-CRPB)","(1-CP-ISS)") -> (1-CP-ISS)
A34: =A33 -> Obras Portuárias, Marítimas e Fluviais | B34: BDI PAD | C34: Obras Portuárias, Marítimas e Fluviais-BDI PAD | E34: 0.228 | F34: 0.2748 | G34: 0.3095
I35: =CONCATENATE("Declaro para os devidos fins que, conforme legislação tributária municipal, a base de cálculo para ",I11,", é de ",Q13*100,"%, com a respectiva alíquota de ",Q14*100,"%.") -> Declaro para os devidos fins que, conforme legislação tributária municipal, a base de cálculo para Construção de Praças Urbanas, Rodovias, Ferrovias e recapeamento e pavimentação de vias urbanas, é de 100%, com a respectiva alíquota de 3%.
I37: =CONCATENATE("Declaro para os devidos fins que o regime de Contribuição Previdenciária sobre a Receita Bruta adotado para elaboração do orçamento foi ",IF(Q11="Sim","COM","SEM")," Desoneração, e que esta é a alternativa mais adequada para a Administração Pública.") -> Declaro para os devidos fins que o regime de Contribuição Previdenciária sobre a Receita Bruta adotado para elaboração do orçamento foi SEM Desoneração, e que esta é a alternativa mais adequada para a Administração Pública.
A38: Fornecimento de Materiais e Equipamentos (aquisição indireta - em conjunto com licitação de obras) | B38: AC | C38: Fornecimento de Materiais e Equipamentos (aquisição indireta - em conjunto com licitação de obras)-AC | E38: 0.015 | F38: 0.0345 | G38: 0.0449
A39: =A38 -> Fornecimento de Materiais e Equipamentos (aquisição indireta - em conjunto com licitação de obras) | B39: SG | C39: Fornecimento de Materiais e Equipamentos (aquisição indireta - em conjunto com licitação de obras)-SG | E39: 0.003 | F39: 0.0048 | G39: 0.0082 | I39: Observações:
A40: =A39 -> Fornecimento de Materiais e Equipamentos (aquisição indireta - em conjunto com licitação de obras) | B40: R | C40: Fornecimento de Materiais e Equipamentos (aquisição indireta - em conjunto com licitação de obras)-R | E40: 0.0056 | F40: 0.0085 | G40: 0.0089
A41: =A40 -> Fornecimento de Materiais e Equipamentos (aquisição indireta - em conjunto com licitação de obras) | B41: DF | C41: Fornecimento de Materiais e Equipamentos (aquisição indireta - em conjunto com licitação de obras)-DF | E41: 0.0085 | F41: 0.0085 | G41: 0.0111
A42: =A41 -> Fornecimento de Materiais e Equipamentos (aquisição indireta - em conjunto com licitação de obras) | B42: L | C42: Fornecimento de Materiais e Equipamentos (aquisição indireta - em conjunto com licitação de obras)-L | E42: 0.035 | F42: 0.0511 | G42: 0.0622 | I42: =PO!K70 -> Bom Jesus / SC | O42: =PO!K73 -> 2018-01-25
A43: =A42 -> Fornecimento de Materiais e Equipamentos (aquisição indireta - em conjunto com licitação de obras) | B43: BDI PAD | C43: Fornecimento de Materiais e Equipamentos (aquisição indireta - em conjunto com licitação de obras)-BDI PAD | E43: 0.111 | F43: 0.1402 | G43: 0.168 | I43: Local | O43: Data
A44: Estudos e Projetos, Planos e Gerenciamento e outros correlatos | B44: K1 | C44: Estudos e Projetos, Planos e Gerenciamento e outros correlatos-K1 | E44: - | F44: - | G44: -
A45: =A44 -> Estudos e Projetos, Planos e Gerenciamento e outros correlatos | B45: K2 | C45: Estudos e Projetos, Planos e Gerenciamento e outros correlatos-K2 | E45: - | F45: 0.2 | G45: -
A46: =A45 -> Estudos e Projetos, Planos e Gerenciamento e outros correlatos | C46: Estudos e Projetos, Planos e Gerenciamento e outros correlatos- | E46: - | F46: - | G46: - | I46: Responsável Técnico | O46: Responsável Tomador
A47: =A46 -> Estudos e Projetos, Planos e Gerenciamento e outros correlatos | C47: Estudos e Projetos, Planos e Gerenciamento e outros correlatos- | E47: - | F47: - | G47: - | I47: Nome: | J47: =DADOS!B54 -> Alexandre Bée Longhi | O47: Nome: | P47: Rafael Calza
A48: =A47 -> Estudos e Projetos, Planos e Gerenciamento e outros correlatos | B48: K3 | C48: Estudos e Projetos, Planos e Gerenciamento e outros correlatos-K3 | E48: - | F48: 0.12 | G48: - | I48: Título: | J48: =DADOS!B55 -> Engenheiro Civil | O48: Cargo: | P48: Prefeito Municipal
A49: =A48 -> Estudos e Projetos, Planos e Gerenciamento e outros correlatos | B49: BDI PAD | C49: Estudos e Projetos, Planos e Gerenciamento e outros correlatos-BDI PAD | E49: - | F49: - | G49: - | I49: =DADOS!A56 -> CREA/CAU: | J49: =DADOS!B56 -> 098.740-6
I50: =DADOS!A57 -> ART/RRT: | J50: =DADOS!B57 -> 6328923-5
A52: Construção e Reforma de Edifícios
A53: Construção de Praças Urbanas, Rodovias, Ferrovias e recapeamento e pavimentação de vias urbanas
A54: Construção de Redes de Abastecimento de Água, Coleta de Esgoto
A55: Construção e Manutenção de Estações e Redes de Distribuição de Energia Elétrica
A56: Obras Portuárias, Marítimas e Fluviais
A57: Fornecimento de Materiais e Equipamentos (aquisição indireta - em conjunto com licitação de obras)
A58: Fornecimento de Materiais e Equipamentos (aquisição direta)
A59: Estudos e Projetos, Planos e Gerenciamento e outros correlatos

Sheet PO
N1: PO - PLANILHA ORÇAMENTÁRIA | T1: Grau de Sigilo
B2: LOTE | C2: Meta | D2: Nível 2 | E2: Nível 3 | F2: Nível 4 | G2: Serviço | N2: =CHOOSE(1+LOG(1+2*(TipoOrçamento="BASE")+4*(TipoOrçamento="LICITADO")+8*(TipoOrçamento="REPROGRAMADOAC")+16*(TipoOrçamento="REPROGRAMADONPL"),2),"nada","Orçamento Base para Licitação","Orçamento Licitado","Orçamento Licitado Reprogramado","Orçamento Base para Licitação - Reprogramado") -> Orçamento Base para Licitação | T2: #PUBLICO | W2: Arredondamento
W3: Quantidade | X3: TRUE
A4: Nmax | U4: ERRO GERAL | W4: Custo Unitáro | X4: TRUE
A5: =MAX($A$12:$A$59) -> 2 | U5: =IF(COUNTIF($U$12:OFFSET($U$59,-1,0),"DESCRIÇÃO")+COUNTIF($U$12:OFFSET($U$59,-1,0),"UNIDADE")+COUNTIF($U$12:OFFSET($U$59,-1,0),"SEM VALOR")>0,"NÃO OK","OK") -> OK | W5: BDI | X5: TRUE
W6: Preço Unitário | X6: TRUE
W7: Preço Total | X7: TRUE
P9: =OFFSET(PLQ!$E$12,ROW($P9)-ROW(P$12),0) -> -
A10: Nível | B10: Altura | C10: n1 | D10: n2 | E10: n3 | F10: n4 | G10: n5 | H10: Czero | I10: Cnível | J10: Nível | K10: Item | L10: Fonte | M10: Código | N10: Descrição | O10: Unidade | P10: Quantidade | Q10: =IF(OR(TipoOrçamento="LICITADO",TipoOrçamento="REPROGRAMADOAC"),"Preço Unitário (R$)","Custo Unitário (R$)") -> Custo Unitário (R$) | R10: BDI (%) | S10: Preço Unitário (R$) | T10: Preço Total (R$) | U10: Erro de Dados | V10: Lista Crono | W10: Concatenação Fonte-Código | X10: BancoRef | Y10: =IF(TipoOrçamento="LICITADO","Preço Unitário Edital (R$)","Custo Unitário Referência (R$)") -> Custo Unitário Referência (R$) | Z10: =IF(TipoOrçamento="LICITADO","Valor BDI Edital","Valor BDI") -> Valor BDI
A11: =CHOOSE(1+LOG(1+2*(J11="Meta")+4*(J11="Nível 2")+8*(J11="Nível 3")+16*(J11="Nível 4")+32*(J11="Serviço"),2),0,1,2,3,4,"S") -> S | B11: =IF(OR(A11="S",A11=0),0,IF(ISERROR(I11),H11,SMALL(H11:I11,1))) -> 0 | C11: =IF($A11=1,OFFSET(C11,-1,0)+1,OFFSET(C11,-1,0)) -> n1 | D11: =IF($A11=1,0,IF($A11=2,OFFSET(D11,-1,0)+1,OFFSET(D11,-1,0))) -> n2 | E11: =IF(AND($A11<=2,$A11<>0),0,IF($A11=3,OFFSET(E11,-1,0)+1,OFFSET(E11,-1,0))) -> n3 | F11: =IF(AND($A11<=3,$A11<>0),0,IF($A11=4,OFFSET(F11,-1,0)+1,OFFSET(F11,-1,0))) -> n4 | G11: =IF(AND($A11<=4,$A11<>0),0,IF($A11="S",OFFSET(G11,-1,0)+1,OFFSET(G11,-1,0))) ->  | H11: =IF(OR($A11="S",$A11=0),0,MATCH(0,OFFSET($B11,1,$A11,ROW($A$59)-ROW($A11)),0)) -> 0 | I11: =IF(OR($A11="S",$A11=0),0,MATCH(OFFSET($B11,0,$A11)+1,OFFSET($B11,1,$A11,ROW($A$59)-ROW($A11)),0)) -> 0 | J11: Serviço | K11: =IF($A11=0,"-",CONCATENATE(C11&".",IF(AND($A$5>=2,$A11>=2),D11&".",""),IF(AND($A$5>=3,$A11>=3),E11&".",""),IF(AND($A$5>=4,$A11>=4),F11&".",""),IF($A11="S",G11&".",""))) ->  | N11: =IF($A11="S",Referencia.Descricao,"(digite a descrição aqui)") ->  | O11: =Referencia.Unidade ->  | P11: =OFFSET(PLQ!$E$12,ROW($P11)-ROW(P$12),0) -> 0 | R11: BDI 1 | S11: =IF($A11="S",IF($Q$10="Preço Unitário (R$)",PO.CustoUnitario,ROUND(PO.CustoUnitario*(1+$Z11),15-13*$X$6)),0) -> 0 | T11: =IF($A11="S",VTOTAL1,IF($A11=0,0,ROUND(SomaAgrup,15-13*$X$7))) -> 0 | U11: =IF($J11="","",IF($N11="","DESCRIÇÃO",IF(AND($J11="Serviço",$O11=""),"UNIDADE",IF($T11<=0,"SEM VALOR",IF(AND($Y11<>"",$Q11>$Y11),"ACIMA REF.",""))))) -> DESCRIÇÃO | V11: =IF(OR($A11=0,$A11="S",$A11>CFF!$A$9),"",MAX(V$12:OFFSET(V11,-1,0))+1) ->  | W11: =IF(AND($J11="Serviço",$M11<>""),IF($L11="",$M11,CONCATENATE($L11,"-",$M11))) -> FALSE | X11: =IF(AND(Fonte<>"",Código<>""),MATCH(Fonte&" "&IF(Fonte="sinapi",SUBSTITUTE(SUBSTITUTE(Código,"/00","/"),"/0","/"),Código),INDIRECT("'[Referência "&_xlnm.Database&".xls]Banco'!$a:$a"),0),"X") -> X | Y11: =IF(Import.Desoneracao="sim",Referencia.Desonerado,Referencia.NaoDesonerado) -> 0 | Z11: =ROUND(IF(ISNUMBER(R11),R11,IF(LEFT(R11,3)="BDI",HLOOKUP(R11,DADOS!$T$37:$X$38,2,FALSE),0)),15-11*$X$5) -> 0.22
A12: 0 | B12: =COUNTA(OFFSET(B12,1,0):B$59) -> 46 | J12: =IF(OR(TipoOrçamento="LICITADO",TipoOrçamento="REPROGRAMADOAC"),"CTEF","LOTE") -> LOTE | K12: 0 | N12: =IF(TipoOrçamento="LICITADO",DADOS!O43,DADOS!G38) -> Lote 01 | T12: =SUMIF(OFFSET($J12,1,0,ROW(T59)-ROW(T12)-1),"Serviço",OFFSET(T12,1,0,ROW(T59)-ROW(T12)-1)) -> 256995.37 | U12: =IF($N12=0,"DESCRIÇÃO","") ->  | V12: 0
A13: =CHOOSE(1+LOG(1+2*(J13="Meta")+4*(J13="Nível 2")+8*(J13="Nível 3")+16*(J13="Nível 4")+32*(J13="Serviço"),2),0,1,2,3,4,"S") -> 1 | B13: =IF(OR(A13="S",A13=0),0,IF(ISERROR(I13),H13,SMALL(H13:I13,1))) -> 46 | C13: =IF($A13=1,OFFSET(C13,-1,0)+1,OFFSET(C13,-1,0)) -> 1 | D13: =IF($A13=1,0,IF($A13=2,OFFSET(D13,-1,0)+1,OFFSET(D13,-1,0))) -> 0 | E13: =IF(AND($A13<=2,$A13<>0),0,IF($A13=3,OFFSET(E13,-1,0)+1,OFFSET(E13,-1,0))) -> 0 | F13: =IF(AND($A13<=3,$A13<>0),0,IF($A13=4,OFFSET(F13,-1,0)+1,OFFSET(F13,-1,0))) -> 0 | G13: =IF(AND($A13<=4,$A13<>0),0,IF($A13="S",OFFSET(G13,-1,0)+1,OFFSET(G13,-1,0))) -> 0 | H13: =IF(OR($A13="S",$A13=0),0,MATCH(0,OFFSET($B13,1,$A13,ROW($A$59)-ROW($A13)),0)) -> 46 | I13: =IF(OR($A13="S",$A13=0),0,MATCH(OFFSET($B13,0,$A13)+1,OFFSET($B13,1,$A13,ROW($A$59)-ROW($A13)),0)) ->  | J13: Meta | K13: =IF($A13=0,"-",CONCATENATE(C13&".",IF(AND($A$5>=2,$A13>=2),D13&".",""),IF(AND($A$5>=3,$A13>=3),E13&".",""),IF(AND($A$5>=4,$A13>=4),F13&".",""),IF($A13="S",G13&".",""))) -> 1. | N13: PAVIMENTAÇÃO | P13: =OFFSET(PLQ!$E$12,ROW($P13)-ROW(P$12),0) -> 0 | R13: BDI 1 | S13: =IF($A13="S",IF($Q$10="Preço Unitário (R$)",PO.CustoUnitario,ROUND(PO.CustoUnitario*(1+$Z13),15-13*$X$6)),0) -> 0 | T13: =IF($A13="S",VTOTAL1,IF($A13=0,0,ROUND(SomaAgrup,15-13*$X$7))) -> 256995.37 | U13: =IF($J13="","",IF($N13="","DESCRIÇÃO",IF(AND($J13="Serviço",$O13=""),"UNIDADE",IF($T13<=0,"SEM VALOR",IF(AND($Y13<>"",$Q13>$Y13),"ACIMA REF.",""))))) ->  | V13: =IF(OR($A13=0,$A13="S",$A13>CFF!$A$9),"",MAX(V$12:OFFSET(V13,-1,0))+1) -> 1 | W13: =IF(AND($J13="Serviço",$M13<>""),IF($L13="",$M13,CONCATENATE($L13,"-",$M13))) -> FALSE | X13: =IF(AND(Fonte<>"",Código<>""),MATCH(Fonte&" "&IF(Fonte="sinapi",SUBSTITUTE(SUBSTITUTE(Código,"/00","/"),"/0","/"),Código),INDIRECT("'[Referência "&_xlnm.Database&".xls]Banco'!$a:$a"),0),"X") -> X | Y13: =IF(Import.Desoneracao="sim",Referencia.Desonerado,Referencia.NaoDesonerado) -> 0 | Z13: =ROUND(IF(ISNUMBER(R13),R13,IF(LEFT(R13,3)="BDI",HLOOKUP(R13,DADOS!$T$37:$X$38,2,FALSE),0)),15-11*$X$5) -> 0.22
A14: 2 | B14: 5 | C14: 1 | D14: 1 | E14: 0 | F14: 0 | G14: 0 | H14: 45 | I14: 5 | J14: Nível 2 | K14: 1.1. | N14: SERVIÇOS INICIAS | P14: =OFFSET(PLQ!$E$12,ROW($P14)-ROW(P$12),0) -> 0 | R14: BDI 1 | S14: 0 | T14: 8370.78 | V14: =IF(OR($A14=0,$A14="S",$A14>CFF!$A$9),"",MAX(V$12:OFFSET(V14,-1,0))+1) -> 2 | W14: FALSE | X14: X | Y14: =IF(Import.Desoneracao="sim",Referencia.Desonerado,Referencia.NaoDesonerado) -> 0 | Z14: =ROUND(IF(ISNUMBER(R14),R14,IF(LEFT(R14,3)="BDI",HLOOKUP(R14,DADOS!$T$37:$X$38,2,FALSE),0)),15-11*$X$5) -> 0.22
A15: S | B15: 0 | C15: 1 | D15: 1 | E15: 0 | F15: 0 | G15: 1 | H15: 0 | I15: 0 | J15: Serviço | K15: 1.1.1. | L15: SINAPI | M15: 74209/1 | N15: Placa de obra em chapa de aço galvanizado 1,25 x 2,00 m | O15: m² | P15: =OFFSET(PLQ!$E$12,ROW($P15)-ROW(P$12),0) -> 2.5 | Q15: 334.2 | R15: BDI 1 | S15: 407.72 | T15: 1019.3 | V15: =IF(OR($A15=0,$A15="S",$A15>CFF!$A$9),"",MAX(V$12:OFFSET(V15,-1,0))+1) ->  | W15: SINAPI-74209/1 | X15: 5891 | Y15: =IF(Import.Desoneracao="sim",Referencia.Desonerado,Referencia.NaoDesonerado) -> 334.21 | Z15: =ROUND(IF(ISNUMBER(R15),R15,IF(LEFT(R15,3)="BDI",HLOOKUP(R15,DADOS!$T$37:$X$38,2,FALSE),0)),15-11*$X$5) -> 0.22
A16: S | B16: 0 | C16: 1 | D16: 1 | E16: 0 | F16: 0 | G16: 2 | H16: 0 | I16: 0 | J16: Serviço | K16: 1.1.2. | L16: SINAPI | M16: 90778 | N16: Engenheiro Civil | O16: h | P16: =OFFSET(PLQ!$E$12,ROW($P16)-ROW(P$12),0) -> 24 | Q16: 104.85 | R16: BDI 1 | S16: 127.92 | T16: 3070.08 | V16: =IF(OR($A16=0,$A16="S",$A16>CFF!$A$9),"",MAX(V$12:OFFSET(V16,-1,0))+1) ->  | W16: SINAPI-90778 | X16: 109 | Y16: =IF(Import.Desoneracao="sim",Referencia.Desonerado,Referencia.NaoDesonerado) -> 104.87 | Z16: =ROUND(IF(ISNUMBER(R16),R16,IF(LEFT(R16,3)="BDI",HLOOKUP(R16,DADOS!$T$37:$X$38,2,FALSE),0)),15-11*$X$5) -> 0.22
A17: S | B17: 0 | C17: 1 | D17: 1 | E17: 0 | F17: 0 | G17: 3 | H17: 0 | I17: 0 | J17: Serviço | K17: 1.1.3. | L17: SINAPI | M17: 90780 | N17: Mestre de obras | O17: h | P17: =OFFSET(PLQ!$E$12,ROW($P17)-ROW(P$12),0) -> 40 | Q17: 83.15 | R17: BDI 1 | S17: 101.44 | T17: 4057.6 | V17: =IF(OR($A17=0,$A17="S",$A17>CFF!$A$9),"",MAX(V$12:OFFSET(V17,-1,0))+1) ->  | W17: SINAPI-90780 | X17: 111 | Y17: =IF(Import.Desoneracao="sim",Referencia.Desonerado,Referencia.NaoDesonerado) -> 83.19 | Z17: =ROUND(IF(ISNUMBER(R17),R17,IF(LEFT(R17,3)="BDI",HLOOKUP(R17,DADOS!$T$37:$X$38,2,FALSE),0)),15-11*$X$5) -> 0.22
A18: S | B18: 0 | C18: 1 | D18: 1 | E18: 0 | F18: 0 | G18: 4 | H18: 0 | I18: 0 | J18: Serviço | K18: 1.1.4. | L18: composição | M18: 005 | N18: Locação de obra de pavimentação asfaltica com equipe de topografia | O18: h | P18: =OFFSET(PLQ!$E$12,ROW($P18)-ROW(P$12),0) -> 5 | Q18: 36.69 | R18: BDI 1 | S18: 44.76 | T18: 223.8 | V18: =IF(OR($A18=0,$A18="S",$A18>CFF!$A$9),"",MAX(V$12:OFFSET(V18,-1,0))+1) ->  | W18: composição-005 | X18: 10 | Y18: =IF(Import.Desoneracao="sim",Referencia.Desonerado,Referencia.NaoDesonerado) -> 36.69 | Z18: =ROUND(IF(ISNUMBER(R18),R18,IF(LEFT(R18,3)="BDI",HLOOKUP(R18,DADOS!$T$37:$X$38,2,FALSE),0)),15-11*$X$5) -> 0.22
A19: 2 | B19: 3 | C19: 1 | D19: 2 | E19: 0 | F19: 0 | G19: 0 | H19: 40 | I19: 3 | J19: Nível 2 | K19: 1.2. | N19: MOBILIZAÇÃO E DESMOBILIZAÇÃO | P19: =OFFSET(PLQ!$E$12,ROW($P19)-ROW(P$12),0) -> 0 | R19: BDI 1 | S19: 0 | T19: 3245.44 | V19: =IF(OR($A19=0,$A19="S",$A19>CFF!$A$9),"",MAX(V$12:OFFSET(V19,-1,0))+1) -> 3 | W19: FALSE | X19: X | Y19: =IF(Import.Desoneracao="sim",Referencia.Desonerado,Referencia.NaoDesonerado) -> 0 | Z19: =ROUND(IF(ISNUMBER(R19),R19,IF(LEFT(R19,3)="BDI",HLOOKUP(R19,DADOS!$T$37:$X$38,2,FALSE),0)),15-11*$X$5) -> 0.22
A20: S | B20: 0 | C20: 1 | D20: 2 | E20: 0 | F20: 0 | G20: 1 | H20: 0 | I20: 0 | J20: Serviço | K20: 1.2.1. | L20: composição | M20: 001 | N20: Mobilização | O20: unid. | P20: =OFFSET(PLQ!$E$12,ROW($P20)-ROW(P$12),0) -> 1 | Q20: 1330.1 | R20: BDI 1 | S20: 1622.72 | T20: 1622.72 | V20: =IF(OR($A20=0,$A20="S",$A20>CFF!$A$9),"",MAX(V$12:OFFSET(V20,-1,0))+1) ->  | W20: composição-001 | X20: 7 | Y20: =IF(Import.Desoneracao="sim",Referencia.Desonerado,Referencia.NaoDesonerado) -> 1330.1 | Z20: =ROUND(IF(ISNUMBER(R20),R20,IF(LEFT(R20,3)="BDI",HLOOKUP(R20,DADOS!$T$37:$X$38,2,FALSE),0)),15-11*$X$5) -> 0.22
A21: S | B21: 0 | C21: 1 | D21: 2 | E21: 0 | F21: 0 | G21: 2 | H21: 0 | I21: 0 | J21: Serviço | K21: 1.2.2. | L21: composição | M21: 002 | N21: Desmobilização | O21: unid. | P21: =OFFSET(PLQ!$E$12,ROW($P21)-ROW(P$12),0) -> 1 | Q21: 1330.1 | R21: BDI 1 | S21: 1622.72 | T21: 1622.72 | V21: =IF(OR($A21=0,$A21="S",$A21>CFF!$A$9),"",MAX(V$12:OFFSET(V21,-1,0))+1) ->  | W21: composição-002 | X21: 8 | Y21: =IF(Import.Desoneracao="sim",Referencia.Desonerado,Referencia.NaoDesonerado) -> 1330.1 | Z21: =ROUND(IF(ISNUMBER(R21),R21,IF(LEFT(R21,3)="BDI",HLOOKUP(R21,DADOS!$T$37:$X$38,2,FALSE),0)),15-11*$X$5) -> 0.22
A22: 2 | B22: 12 | C22: 1 | D22: 3 | E22: 0 | F22: 0 | G22: 0 | H22: 37 | I22: 12 | J22: Nível 2 | K22: 1.3. | N22: DRENAGEM | P22: =OFFSET(PLQ!$E$12,ROW($P22)-ROW(P$12),0) -> 0 | R22: BDI 1 | S22: 0 | T22: 7666.48 | V22: =IF(OR($A22=0,$A22="S",$A22>CFF!$A$9),"",MAX(V$12:OFFSET(V22,-1,0))+1) -> 4 | W22: FALSE | X22: X | Y22: =IF(Import.Desoneracao="sim",Referencia.Desonerado,Referencia.NaoDesonerado) -> 0 | Z22: =ROUND(IF(ISNUMBER(R22),R22,IF(LEFT(R22,3)="BDI",HLOOKUP(R22,DADOS!$T$37:$X$38,2,FALSE),0)),15-11*$X$5) -> 0.22
A23: S | B23: 0 | C23: 1 | D23: 3 | E23: 0 | F23: 0 | G23: 1 | H23: 0 | I23: 0 | J23: Serviço | K23: 1.3.1. | L23: SINAPI | M23: 92809 | N23: Assentamentos de tubos BSTC Ø 400mm | O23: m | P23: =OFFSET(PLQ!$E$12,ROW($P23)-ROW(P$12),0) -> 12 | Q23: 40.33 | R23: BDI 1 | S23: 49.2 | T23: 590.4 | V23: =IF(OR($A23=0,$A23="S",$A23>CFF!$A$9),"",MAX(V$12:OFFSET(V23,-1,0))+1) ->  | W23: =IF(AND($J23="Serviço",$M23<>""),IF($L23="",$M23,CONCATENATE($L23,"-",$M23))) -> SINAPI-92809 | X23: 5789 | Y23: =IF(Import.Desoneracao="sim",Referencia.Desonerado,Referencia.NaoDesonerado) -> 40.37 | Z23: =ROUND(IF(ISNUMBER(R23),R23,IF(LEFT(R23,3)="BDI",HLOOKUP(R23,DADOS!$T$37:$X$38,2,FALSE),0)),15-11*$X$5) -> 0.22
A24: S | B24: 0 | C24: 1 | D24: 3 | E24: 0 | F24: 0 | G24: 2 | H24: 0 | I24: 0 | J24: Serviço | K24: 1.3.2. | L24: SINAPI-I | M24: 7781 | N24: Tubo de concreto simples 400 mm Classe PS1 | O24: m | P24: =OFFSET(PLQ!$E$12,ROW($P24)-ROW(P$12),0) -> 12 | Q24: 26.39 | R24: BDI 1 | S24: 32.2 | T24: 386.4 | V24: =IF(OR($A24=0,$A24="S",$A24>CFF!$A$9),"",MAX(V$12:OFFSET(V24,-1,0))+1) ->  | W24: SINAPI-I-7781 | X24: 5231 | Y24: =IF(Import.Desoneracao="sim",Referencia.Desonerado,Referencia.NaoDesonerado) -> 26.44 | Z24: =ROUND(IF(ISNUMBER(R24),R24,IF(LEFT(R24,3)="BDI",HLOOKUP(R24,DADOS!$T$37:$X$38,2,FALSE),0)),15-11*$X$5) -> 0.22
A25: S | B25: 0 | C25: 1 | D25: 3 | E25: 0 | F25: 0 | G25: 3 | H25: 0 | I25: 0 | J25: Serviço | K25: 1.3.3. | L25: SINAPI | M25: 72840 | N25: Transporte comercial com caminhão carroceria 9 T - DMT = 50 Km | O25: Txkm | P25: =OFFSET(PLQ!$E$12,ROW($P25)-ROW(P$12),0) -> 71.7 | Q25: 0.54 | R25: BDI 1 | S25: 0.66 | T25: 47.32 | V25: =IF(OR($A25=0,$A25="S",$A25>CFF!$A$9),"",MAX(V$12:OFFSET(V25,-1,0))+1) ->  | W25: SINAPI-72840 | X25: 10040 | Y25: =IF(Import.Desoneracao="sim",Referencia.Desonerado,Referencia.NaoDesonerado) -> 0.54 | Z25: =ROUND(IF(ISNUMBER(R25),R25,IF(LEFT(R25,3)="BDI",HLOOKUP(R25,DADOS!$T$37:$X$38,2,FALSE),0)),15-11*$X$5) -> 0.22
A26: S | B26: 0 | C26: 1 | D26: 3 | E26: 0 | F26: 0 | G26: 4 | H26: 0 | I26: 0 | J26: Serviço | K26: 1.3.4. | L26: SINAPI | M26: 90106 | N26: Escavação de valas p/ galerias tubulares | O26: m³ | P26: =OFFSET(PLQ!$E$12,ROW($P26)-ROW(P$12),0) -> 14.4 | Q26: 10.98 | R26: BDI 1 | S26: 13.4 | T26: 192.96 | V26: =IF(OR($A26=0,$A26="S",$A26>CFF!$A$9),"",MAX(V$12:OFFSET(V26,-1,0))+1) ->  | W26: SINAPI-90106 | X26: 9983 | Y26: =IF(Import.Desoneracao="sim",Referencia.Desonerado,Referencia.NaoDesonerado) -> 11.03 | Z26: =ROUND(IF(ISNUMBER(R26),R26,IF(LEFT(R26,3)="BDI",HLOOKUP(R26,DADOS!$T$37:$X$38,2,FALSE),0)),15-11*$X$5) -> 0.22
A27: S | B27: 0 | C27: 1 | D27: 3 | E27: 0 | F27: 0 | G27: 5 | H27: 0 | I27: 0 | J27: Serviço | K27: 1.3.5. | L27: SINAPI | M27: 93379 | N27: Reaterro de valas p/ galerias tubulares | O27: m³ | P27: =OFFSET(PLQ!$E$12,ROW($P27)-ROW(P$12),0) -> 10 | Q27: 15.33 | R27: BDI 1 | S27: 18.7 | T27: 187 | V27: =IF(OR($A27=0,$A27="S",$A27>CFF!$A$9),"",MAX(V$12:OFFSET(V27,-1,0))+1) ->  | W27: SINAPI-93379 | X27: 10034 | Y27: =IF(Import.Desoneracao="sim",Referencia.Desonerado,Referencia.NaoDesonerado) -> 15.39 | Z27: =ROUND(IF(ISNUMBER(R27),R27,IF(LEFT(R27,3)="BDI",HLOOKUP(R27,DADOS!$T$37:$X$38,2,FALSE),0)),15-11*$X$5) -> 0.22
A28: S | B28: 0 | C28: 1 | D28: 3 | E28: 0 | F28: 0 | G28: 6 | H28: 0 | I28: 0 | J28: Serviço | K28: 1.3.6. | L28: SINAPI | M28: 73710 | N28: Recomposição com base de brita graduada compacatada - esp 30 cm | O28: m³ | P28: =OFFSET(PLQ!$E$12,ROW($P28)-ROW(P$12),0) -> 2.9 | Q28: 95 | R28: BDI 1 | S28: 115.9 | T28: 336.11 | V28: =IF(OR($A28=0,$A28="S",$A28>CFF!$A$9),"",MAX(V$12:OFFSET(V28,-1,0))+1) ->  | W28: SINAPI-73710 | X28: 10328 | Y28: =IF(Import.Desoneracao="sim",Referencia.Desonerado,Referencia.NaoDesonerado) -> 100.13 | Z28: =ROUND(IF(ISNUMBER(R28),R28,IF(LEFT(R28,3)="BDI",HLOOKUP(R28,DADOS!$T$37:$X$38,2,FALSE),0)),15-11*$X$5) -> 0.22
A29: S | B29: 0 | C29: 1 | D29: 3 | E29: 0 | F29: 0 | G29: 7 | H29: 0 | I29: 0 | J29: Serviço | K29: 1.3.7. | L29: SINAPI | M29: 83356 | N29: Transporte de brita graduada - DMT = 50 Km | O29: m³xkm | P29: =OFFSET(PLQ!$E$12,ROW($P29)-ROW(P$12),0) -> 145 | Q29: 0.71 | R29: BDI 1 | S29: 0.87 | T29: 126.15 | V29: =IF(OR($A29=0,$A29="S",$A29>CFF!$A$9),"",MAX(V$12:OFFSET(V29,-1,0))+1) ->  | W29: SINAPI-83356 | X29: 10070 | Y29: =IF(Import.Desoneracao="sim",Referencia.Desonerado,Referencia.NaoDesonerado) -> 0.71 | Z29: =ROUND(IF(ISNUMBER(R29),R29,IF(LEFT(R29,3)="BDI",HLOOKUP(R29,DADOS!$T$37:$X$38,2,FALSE),0)),15-11*$X$5) -> 0.22
A30: S | B30: 0 | C30: 1 | D30: 3 | E30: 0 | F30: 0 | G30: 8 | H30: 0 | I30: 0 | J30: Serviço | K30: 1.3.8. | L30: SINAPI | M30: 72945 | N30: Imprimação da Base com asfalto diluído CM 30 - taxa = 1,2 L/m² | O30: m² | P30: =OFFSET(PLQ!$E$12,ROW($P30)-ROW(P$12),0) -> 9.6 | Q30: 4.1 | R30: BDI 1 | S30: 5 | T30: 48 | V30: =IF(OR($A30=0,$A30="S",$A30>CFF!$A$9),"",MAX(V$12:OFFSET(V30,-1,0))+1) ->  | W30: SINAPI-72945 | X30: 10335 | Y30: =IF(Import.Desoneracao="sim",Referencia.Desonerado,Referencia.NaoDesonerado) -> 4.47 | Z30: =ROUND(IF(ISNUMBER(R30),R30,IF(LEFT(R30,3)="BDI",HLOOKUP(R30,DADOS!$T$37:$X$38,2,FALSE),0)),15-11*$X$5) -> 0.22
A31: S | B31: 0 | C31: 1 | D31: 3 | E31: 0 | F31: 0 | G31: 9 | H31: 0 | I31: 0 | J31: Serviço | K31: 1.3.9. | L31: SINAPI | M31: 93177 | N31: Transporte de material betuminoso CM 30 - DMT = 50 Km | O31: Txkm | P31: =OFFSET(PLQ!$E$12,ROW($P31)-ROW(P$12),0) -> 0.6 | Q31: 1.42 | R31: BDI 1 | S31: 1.73 | T31: 1.04 | V31: =IF(OR($A31=0,$A31="S",$A31>CFF!$A$9),"",MAX(V$12:OFFSET(V31,-1,0))+1) ->  | W31: SINAPI-93177 | X31: 11398 | Y31: =IF(Import.Desoneracao="sim",Referencia.Desonerado,Referencia.NaoDesonerado) -> 1.42 | Z31: =ROUND(IF(ISNUMBER(R31),R31,IF(LEFT(R31,3)="BDI",HLOOKUP(R31,DADOS!$T$37:$X$38,2,FALSE),0)),15-11*$X$5) -> 0.22
A32: S | B32: 0 | C32: 1 | D32: 3 | E32: 0 | F32: 0 | G32: 10 | H32: 0 | I32: 0 | J32: Serviço | K32: 1.3.10. | L32: composição | M32: 003 | N32: Caixa coletora tipo BL completa | O32: unid. | P32: =OFFSET(PLQ!$E$12,ROW($P32)-ROW(P$12),0) -> 2 | Q32: 1198.36 | R32: BDI 1 | S32: 1462 | T32: 2924 | V32: =IF(OR($A32=0,$A32="S",$A32>CFF!$A$9),"",MAX(V$12:OFFSET(V32,-1,0))+1) ->  | W32: =IF(AND($J32="Serviço",$M32<>""),IF($L32="",$M32,CONCATENATE($L32,"-",$M32))) -> composição-003 | X32: 9 | Y32: =IF(Import.Desoneracao="sim",Referencia.Desonerado,Referencia.NaoDesonerado) -> 1199.99 | Z32: =ROUND(IF(ISNUMBER(R32),R32,IF(LEFT(R32,3)="BDI",HLOOKUP(R32,DADOS!$T$37:$X$38,2,FALSE),0)),15-11*$X$5) -> 0.22
A33: S | B33: 0 | C33: 1 | D33: 3 | E33: 0 | F33: 0 | G33: 11 | H33: 0 | I33: 0 | J33: Serviço | K33: 1.3.11. | L33: composição | M33: 006 | N33: Elevação de caixa coletora tipo boca de lobo, com reaproveitamento da grade de ferro | O33: unid. | P33: =OFFSET(PLQ!$E$12,ROW($P33)-ROW(P$12),0) -> 17 | Q33: 136.31 | R33: BDI 1 | S33: 166.3 | T33: 2827.1 | V33: =IF(OR($A33=0,$A33="S",$A33>CFF!$A$9),"",MAX(V$12:OFFSET(V33,-1,0))+1) ->  | W33: composição-006 | X33: 11 | Y33: =IF(Import.Desoneracao="sim",Referencia.Desonerado,Referencia.NaoDesonerado) -> 136.48 | Z33: =ROUND(IF(ISNUMBER(R33),R33,IF(LEFT(R33,3)="BDI",HLOOKUP(R33,DADOS!$T$37:$X$38,2,FALSE),0)),15-11*$X$5) -> 0.22
A34: 2 | B34: 19 | C34: 1 | D34: 4 | E34: 0 | F34: 0 | G34: 0 | H34: 25 | I34: 19 | J34: Nível 2 | K34: 1.4. | N34: PAVIMENTAÇÃO | P34: =OFFSET(PLQ!$E$12,ROW($P34)-ROW(P$12),0) -> 0 | R34: BDI 1 | S34: 0 | T34: 229987.18 | V34: =IF(OR($A34=0,$A34="S",$A34>CFF!$A$9),"",MAX(V$12:OFFSET(V34,-1,0))+1) -> 5 | W34: FALSE | X34: X | Y34: =IF(Import.Desoneracao="sim",Referencia.Desonerado,Referencia.NaoDesonerado) -> 0 | Z34: =ROUND(IF(ISNUMBER(R34),R34,IF(LEFT(R34,3)="BDI",HLOOKUP(R34,DADOS!$T$37:$X$38,2,FALSE),0)),15-11*$X$5) -> 0.22
A35: S | B35: 0 | C35: 1 | D35: 4 | E35: 0 | F35: 0 | G35: 1 | H35: 0 | I35: 0 | J35: Serviço | K35: 1.4.1. | L35: SINAPI | M35: 90106 | N35: Escavação mecanizada - e: 25 cm | O35: m³ | P35: =OFFSET(PLQ!$E$12,ROW($P35)-ROW(P$12),0) -> 8 | Q35: 10.98 | R35: BDI 1 | S35: 13.4 | T35: 107.2 | V35: =IF(OR($A35=0,$A35="S",$A35>CFF!$A$9),"",MAX(V$12:OFFSET(V35,-1,0))+1) ->  | W35: SINAPI-90106 | X35: 9983 | Y35: =IF(Import.Desoneracao="sim",Referencia.Desonerado,Referencia.NaoDesonerado) -> 11.03 | Z35: =ROUND(IF(ISNUMBER(R35),R35,IF(LEFT(R35,3)="BDI",HLOOKUP(R35,DADOS!$T$37:$X$38,2,FALSE),0)),15-11*$X$5) -> 0.22
A36: S | B36: 0 | C36: 1 | D36: 4 | E36: 0 | F36: 0 | G36: 2 | H36: 0 | I36: 0 | J36: Serviço | K36: 1.4.2. | L36: SINAPI | M36: 72961 | N36: Regularização e compactação do sub-leito a 100% do PN | O36: m² | P36: =OFFSET(PLQ!$E$12,ROW($P36)-ROW(P$12),0) -> 32 | Q36: 1.25 | R36: BDI 1 | S36: 1.53 | T36: 48.96 | V36: =IF(OR($A36=0,$A36="S",$A36>CFF!$A$9),"",MAX(V$12:OFFSET(V36,-1,0))+1) ->  | W36: SINAPI-72961 | X36: 10327 | Y36: =IF(Import.Desoneracao="sim",Referencia.Desonerado,Referencia.NaoDesonerado) -> 1.25 | Z36: =ROUND(IF(ISNUMBER(R36),R36,IF(LEFT(R36,3)="BDI",HLOOKUP(R36,DADOS!$T$37:$X$38,2,FALSE),0)),15-11*$X$5) -> 0.22
A37: S | B37: 0 | C37: 1 | D37: 4 | E37: 0 | F37: 0 | G37: 3 | H37: 0 | I37: 0 | J37: Serviço | K37: 1.4.3. | L37: SINAPI | M37: 73766/001 | N37: Sub base macadame hidraulico espessura = 15 cm | O37: m³ | P37: =OFFSET(PLQ!$E$12,ROW($P37)-ROW(P$12),0) -> 4.8 | Q37: 90 | R37: BDI 1 | S37: 109.8 | T37: 527.04 | V37: =IF(OR($A37=0,$A37="S",$A37>CFF!$A$9),"",MAX(V$12:OFFSET(V37,-1,0))+1) ->  | W37: SINAPI-73766/001 | X37: 10330 | Y37: =IF(Import.Desoneracao="sim",Referencia.Desonerado,Referencia.NaoDesonerado) -> 123.82 | Z37: =ROUND(IF(ISNUMBER(R37),R37,IF(LEFT(R37,3)="BDI",HLOOKUP(R37,DADOS!$T$37:$X$38,2,FALSE),0)),15-11*$X$5) -> 0.22
A38: S | B38: 0 | C38: 1 | D38: 4 | E38: 0 | F38: 0 | G38: 4 | H38: 0 | I38: 0 | J38: Serviço | K38: 1.4.4. | L38: SINAPI | M38: 73710 | N38: Base de brita graduada compactada - esp= 10 cm | O38: m³ | P38: =OFFSET(PLQ!$E$12,ROW($P38)-ROW(P$12),0) -> 3.2 | Q38: 95 | R38: BDI 1 | S38: 115.9 | T38: 370.88 | V38: =IF(OR($A38=0,$A38="S",$A38>CFF!$A$9),"",MAX(V$12:OFFSET(V38,-1,0))+1) ->  | W38: SINAPI-73710 | X38: 10328 | Y38: =IF(Import.Desoneracao="sim",Referencia.Desonerado,Referencia.NaoDesonerado) -> 100.13 | Z38: =ROUND(IF(ISNUMBER(R38),R38,IF(LEFT(R38,3)="BDI",HLOOKUP(R38,DADOS!$T$37:$X$38,2,FALSE),0)),15-11*$X$5) -> 0.22
A39: S | B39: 0 | C39: 1 | D39: 4 | E39: 0 | F39: 0 | G39: 5 | H39: 0 | I39: 0 | J39: Serviço | K39: 1.4.5. | L39: SINAPI | M39: 83356 | N39: Transporte de macadame hidraulico e brita graduada - DMT = 50 Km | O39: m³xkm | P39: =OFFSET(PLQ!$E$12,ROW($P39)-ROW(P$12),0) -> 400 | Q39: 0.71 | R39: BDI 1 | S39: 0.87 | T39: 348 | V39: =IF(OR($A39=0,$A39="S",$A39>CFF!$A$9),"",MAX(V$12:OFFSET(V39,-1,0))+1) ->  | W39: SINAPI-83356 | X39: 10070 | Y39: =IF(Import.Desoneracao="sim",Referencia.Desonerado,Referencia.NaoDesonerado) -> 0.71 | Z39: =ROUND(IF(ISNUMBER(R39),R39,IF(LEFT(R39,3)="BDI",HLOOKUP(R39,DADOS!$T$37:$X$38,2,FALSE),0)),15-11*$X$5) -> 0.22
A40: S | B40: 0 | C40: 1 | D40: 4 | E40: 0 | F40: 0 | G40: 6 | H40: 0 | I40: 0 | J40: Serviço | K40: 1.4.6. | L40: SINAPI | M40: 72945 | N40: Imprimação da Base com asfalto diluído CM 30 - taxa = 1,2 L/m² | O40: m² | P40: =OFFSET(PLQ!$E$12,ROW($P40)-ROW(P$12),0) -> 32 | Q40: 4.1 | R40: BDI 1 | S40: 5 | T40: 160 | V40: =IF(OR($A40=0,$A40="S",$A40>CFF!$A$9),"",MAX(V$12:OFFSET(V40,-1,0))+1) ->  | W40: SINAPI-72945 | X40: 10335 | Y40: =IF(Import.Desoneracao="sim",Referencia.Desonerado,Referencia.NaoDesonerado) -> 4.47 | Z40: =ROUND(IF(ISNUMBER(R40),R40,IF(LEFT(R40,3)="BDI",HLOOKUP(R40,DADOS!$T$37:$X$38,2,FALSE),0)),15-11*$X$5) -> 0.22
A41: =CHOOSE(1+LOG(1+2*(J41="Meta")+4*(J41="Nível 2")+8*(J41="Nível 3")+16*(J41="Nível 4")+32*(J41="Serviço"),2),0,1,2,3,4,"S") -> S | B41: =IF(OR(A41="S",A41=0),0,IF(ISERROR(I41),H41,SMALL(H41:I41,1))) -> 0 | C41: 1 | D41: 4 | E41: 0 | F41: 0 | G41: 7 | H41: 0 | I41: 0 | J41: Serviço | K41: 1.4.7. | L41: SINAPI | M41: 93177 | N41: Transporte de material betuminoso CM 30 - DMT = 50 Km | O41: Txkm | P41: =OFFSET(PLQ!$E$12,ROW($P41)-ROW(P$12),0) -> 1.9 | Q41: 1.42 | R41: BDI 1 | S41: 1.73 | T41: 3.29 | V41: =IF(OR($A41=0,$A41="S",$A41>CFF!$A$9),"",MAX(V$12:OFFSET(V41,-1,0))+1) ->  | W41: SINAPI-93177 | X41: 11398 | Y41: =IF(Import.Desoneracao="sim",Referencia.Desonerado,Referencia.NaoDesonerado) -> 1.42 | Z41: =ROUND(IF(ISNUMBER(R41),R41,IF(LEFT(R41,3)="BDI",HLOOKUP(R41,DADOS!$T$37:$X$38,2,FALSE),0)),15-11*$X$5) -> 0.22
A42: S | B42: 0 | C42: 1 | D42: 4 | E42: 0 | F42: 0 | G42: 8 | H42: 0 | I42: 0 | J42: Serviço | K42: 1.4.8. | L42: SINAPI | M42: 73806/001 | N42: Limpeza do pavimento | O42: m² | P42: =OFFSET(PLQ!$E$12,ROW($P42)-ROW(P$12),0) -> 4134 | Q42: 1.64 | R42: BDI 1 | S42: 2 | T42: 8268 | V42: =IF(OR($A42=0,$A42="S",$A42>CFF!$A$9),"",MAX(V$12:OFFSET(V42,-1,0))+1) ->  | W42: SINAPI-73806/001 | X42: 11174 | Y42: =IF(Import.Desoneracao="sim",Referencia.Desonerado,Referencia.NaoDesonerado) -> 1.66 | Z42: =ROUND(IF(ISNUMBER(R42),R42,IF(LEFT(R42,3)="BDI",HLOOKUP(R42,DADOS!$T$37:$X$38,2,FALSE),0)),15-11*$X$5) -> 0.22
A43: S | B43: 0 | C43: 1 | D43: 4 | E43: 0 | F43: 0 | G43: 9 | H43: 0 | I43: 0 | J43: Serviço | K43: 1.4.9. | L43: SINAPI | M43: 72943 | N43: Pintura de Ligação com emulsão RR-2C - taxa = 0,50 L/m² | O43: m² | P43: =OFFSET(PLQ!$E$12,ROW($P43)-ROW(P$12),0) -> 4134 | Q43: 1.27 | R43: BDI 1 | S43: 1.55 | T43: 6407.7 | V43: =IF(OR($A43=0,$A43="S",$A43>CFF!$A$9),"",MAX(V$12:OFFSET(V43,-1,0))+1) ->  | W43: SINAPI-72943 | X43: 10334 | Y43: =IF(Import.Desoneracao="sim",Referencia.Desonerado,Referencia.NaoDesonerado) -> 1.29 | Z43: =ROUND(IF(ISNUMBER(R43),R43,IF(LEFT(R43,3)="BDI",HLOOKUP(R43,DADOS!$T$37:$X$38,2,FALSE),0)),15-11*$X$5) -> 0.22
A44: S | B44: 0 | C44: 1 | D44: 4 | E44: 0 | F44: 0 | G44: 10 | H44: 0 | I44: 0 | J44: Serviço | K44: 1.4.10. | L44: SINAPI | M44: 72943 | N44: Pintura de Ligação com emulsão RR-2C - taxa = 0,30 L/m² | O44: m² | P44: =OFFSET(PLQ!$E$12,ROW($P44)-ROW(P$12),0) -> 4134 | Q44: 0.74 | R44: BDI 1 | S44: 0.9 | T44: 3720.6 | V44: =IF(OR($A44=0,$A44="S",$A44>CFF!$A$9),"",MAX(V$12:OFFSET(V44,-1,0))+1) ->  | W44: SINAPI-72943 | X44: 10334 | Y44: =IF(Import.Desoneracao="sim",Referencia.Desonerado,Referencia.NaoDesonerado) -> 1.29 | Z44: =ROUND(IF(ISNUMBER(R44),R44,IF(LEFT(R44,3)="BDI",HLOOKUP(R44,DADOS!$T$37:$X$38,2,FALSE),0)),15-11*$X$5) -> 0.22
A45: S | B45: 0 | C45: 1 | D45: 4 | E45: 0 | F45: 0 | G45: 11 | H45: 0 | I45: 0 | J45: Serviço | K45: 1.4.11. | L45: SINAPI | M45: 93177 | N45: Transporte de material betuminoso RR-2C - DMT = 60 Km | O45: Txkm | P45: =OFFSET(PLQ!$E$12,ROW($P45)-ROW(P$12),0) -> 165.4 | Q45: 1.42 | R45: BDI 1 | S45: 1.73 | T45: 286.14 | V45: =IF(OR($A45=0,$A45="S",$A45>CFF!$A$9),"",MAX(V$12:OFFSET(V45,-1,0))+1) ->  | W45: SINAPI-93177 | X45: 11398 | Y45: =IF(Import.Desoneracao="sim",Referencia.Desonerado,Referencia.NaoDesonerado) -> 1.42 | Z45: =ROUND(IF(ISNUMBER(R45),R45,IF(LEFT(R45,3)="BDI",HLOOKUP(R45,DADOS!$T$37:$X$38,2,FALSE),0)),15-11*$X$5) -> 0.22
A46: S | B46: 0 | C46: 1 | D46: 4 | E46: 0 | F46: 0 | G46: 12 | H46: 0 | I46: 0 | J46: Serviço | K46: 1.4.12. | L46: SINAPI | M46: 95994 | N46: Reperfilagem com concreto asfáltico usinado à quente (e= 4 cm) | O46: m³ | P46: =OFFSET(PLQ!$E$12,ROW($P46)-ROW(P$12),0) -> 165.4 | Q46: 487.01 | R46: BDI 1 | S46: 594.15 | T46: 98272.41 | V46: =IF(OR($A46=0,$A46="S",$A46>CFF!$A$9),"",MAX(V$12:OFFSET(V46,-1,0))+1) ->  | W46: SINAPI-95994 | X46: 10380 | Y46: =IF(Import.Desoneracao="sim",Referencia.Desonerado,Referencia.NaoDesonerado) -> 585.73 | Z46: =ROUND(IF(ISNUMBER(R46),R46,IF(LEFT(R46,3)="BDI",HLOOKUP(R46,DADOS!$T$37:$X$38,2,FALSE),0)),15-11*$X$5) -> 0.22
A47: S | B47: 0 | C47: 1 | D47: 4 | E47: 0 | F47: 0 | G47: 13 | H47: 0 | I47: 0 | J47: Serviço | K47: 1.4.13. | L47: SINAPI | M47: 95990 | N47: Camada de concreto asfáltico usinado à quente (esp.= 3) | O47: m³ | P47: =OFFSET(PLQ!$E$12,ROW($P47)-ROW(P$12),0) -> 124 | Q47: 530 | R47: BDI 1 | S47: 646.6 | T47: 80178.4 | V47: =IF(OR($A47=0,$A47="S",$A47>CFF!$A$9),"",MAX(V$12:OFFSET(V47,-1,0))+1) ->  | W47: SINAPI-95990 | X47: 10377 | Y47: =IF(Import.Desoneracao="sim",Referencia.Desonerado,Referencia.NaoDesonerado) -> 652.84 | Z47: =ROUND(IF(ISNUMBER(R47),R47,IF(LEFT(R47,3)="BDI",HLOOKUP(R47,DADOS!$T$37:$X$38,2,FALSE),0)),15-11*$X$5) -> 0.22
A48: S | B48: 0 | C48: 1 | D48: 4 | E48: 0 | F48: 0 | G48: 14 | H48: 0 | I48: 0 | J48: Serviço | K48: 1.4.14. | L48: SINAPI | M48: 72887 | N48: Transporte de massa asfáltica - DMT = 50 Km | O48: m³xkm | P48: =OFFSET(PLQ!$E$12,ROW($P48)-ROW(P$12),0) -> 14470 | Q48: 0.9 | R48: BDI 1 | S48: 1.1 | T48: 15917 | V48: =IF(OR($A48=0,$A48="S",$A48>CFF!$A$9),"",MAX(V$12:OFFSET(V48,-1,0))+1) ->  | W48: SINAPI-72887 | X48: 10056 | Y48: =IF(Import.Desoneracao="sim",Referencia.Desonerado,Referencia.NaoDesonerado) -> 1 | Z48: =ROUND(IF(ISNUMBER(R48),R48,IF(LEFT(R48,3)="BDI",HLOOKUP(R48,DADOS!$T$37:$X$38,2,FALSE),0)),15-11*$X$5) -> 0.22
A49: S | B49: 0 | C49: 1 | D49: 4 | E49: 0 | F49: 0 | G49: 15 | H49: 0 | I49: 0 | J49: Serviço | K49: 1.4.15. | L49: SINAPI | M49: 85335 | N49: Retirada de meio-fio pré-moldado | O49: m | P49: =OFFSET(PLQ!$E$12,ROW($P49)-ROW(P$12),0) -> 237 | Q49: 7.94 | R49: BDI 1 | S49: 9.69 | T49: 2296.53 | V49: =IF(OR($A49=0,$A49="S",$A49>CFF!$A$9),"",MAX(V$12:OFFSET(V49,-1,0))+1) ->  | W49: SINAPI-85335 | X49: 11259 | Y49: =IF(Import.Desoneracao="sim",Referencia.Desonerado,Referencia.NaoDesonerado) -> 7.94 | Z49: =ROUND(IF(ISNUMBER(R49),R49,IF(LEFT(R49,3)="BDI",HLOOKUP(R49,DADOS!$T$37:$X$38,2,FALSE),0)),15-11*$X$5) -> 0.22
A50: =CHOOSE(1+LOG(1+2*(J50="Meta")+4*(J50="Nível 2")+8*(J50="Nível 3")+16*(J50="Nível 4")+32*(J50="Serviço"),2),0,1,2,3,4,"S") -> S | B50: =IF(OR(A50="S",A50=0),0,IF(ISERROR(I50),H50,SMALL(H50:I50,1))) -> 0 | C50: =IF($A50=1,OFFSET(C50,-1,0)+1,OFFSET(C50,-1,0)) -> 1 | D50: =IF($A50=1,0,IF($A50=2,OFFSET(D50,-1,0)+1,OFFSET(D50,-1,0))) -> 4 | E50: =IF(AND($A50<=2,$A50<>0),0,IF($A50=3,OFFSET(E50,-1,0)+1,OFFSET(E50,-1,0))) -> 0 | F50: =IF(AND($A50<=3,$A50<>0),0,IF($A50=4,OFFSET(F50,-1,0)+1,OFFSET(F50,-1,0))) -> 0 | G50: =IF(AND($A50<=4,$A50<>0),0,IF($A50="S",OFFSET(G50,-1,0)+1,OFFSET(G50,-1,0))) -> 16 | H50: 0 | I50: 0 | J50: Serviço | K50: =IF($A50=0,"-",CONCATENATE(C50&".",IF(AND($A$5>=2,$A50>=2),D50&".",""),IF(AND($A$5>=3,$A50>=3),E50&".",""),IF(AND($A$5>=4,$A50>=4),F50&".",""),IF($A50="S",G50&".",""))) -> 1.4.16. | L50: composição | M50: 004 | N50: Assentamento de meio-fio pré-moldado | O50: m | P50: =OFFSET(PLQ!$E$12,ROW($P50)-ROW(P$12),0) -> 228 | Q50: 16.15 | R50: BDI 1 | S50: =IF($A50="S",IF($Q$10="Preço Unitário (R$)",PO.CustoUnitario,ROUND(PO.CustoUnitario*(1+$Z50),15-13*$X$6)),0) -> 19.7 | T50: =IF($A50="S",VTOTAL1,IF($A50=0,0,ROUND(SomaAgrup,15-13*$X$7))) -> 4491.6 | U50: =IF($J50="","",IF($N50="","DESCRIÇÃO",IF(AND($J50="Serviço",$O50=""),"UNIDADE",IF($T50<=0,"SEM VALOR",IF(AND($Y50<>"",$Q50>$Y50),"ACIMA REF.",""))))) ->  | V50: =IF(OR($A50=0,$A50="S",$A50>CFF!$A$9),"",MAX(V$12:OFFSET(V50,-1,0))+1) ->  | W50: =IF(AND($J50="Serviço",$M50<>""),IF($L50="",$M50,CONCATENATE($L50,"-",$M50))) -> composição-004 | X50: =IF(AND(Fonte<>"",Código<>""),MATCH(Fonte&" "&IF(Fonte="sinapi",SUBSTITUTE(SUBSTITUTE(Código,"/00","/"),"/0","/"),Código),INDIRECT("'[Referência "&_xlnm.Database&".xls]Banco'!$a:$a"),0),"X") -> 12 | Y50: =IF(Import.Desoneracao="sim",Referencia.Desonerado,Referencia.NaoDesonerado) -> 19.61 | Z50: =ROUND(IF(ISNUMBER(R50),R50,IF(LEFT(R50,3)="BDI",HLOOKUP(R50,DADOS!$T$37:$X$38,2,FALSE),0)),15-11*$X$5) -> 0.22
A51: S | B51: 0 | C51: 1 | D51: 4 | E51: 0 | F51: 0 | G51: 17 | H51: 0 | I51: 0 | J51: Serviço | K51: 1.4.17. | L51: SINAPI | M51: 94273 | N51: Meio-fio pré-moldado 15 x 13 x 30 x 50 cm | O51: m | P51: =OFFSET(PLQ!$E$12,ROW($P51)-ROW(P$12),0) -> 53 | Q51: 29 | R51: BDI 1 | S51: 35.38 | T51: 1875.14 | V51: =IF(OR($A51=0,$A51="S",$A51>CFF!$A$9),"",MAX(V$12:OFFSET(V51,-1,0))+1) ->  | W51: SINAPI-94273 | X51: 7105 | Y51: =IF(Import.Desoneracao="sim",Referencia.Desonerado,Referencia.NaoDesonerado) -> 31.84 | Z51: =ROUND(IF(ISNUMBER(R51),R51,IF(LEFT(R51,3)="BDI",HLOOKUP(R51,DADOS!$T$37:$X$38,2,FALSE),0)),15-11*$X$5) -> 0.22
A52: S | B52: 0 | C52: 1 | D52: 4 | E52: 0 | F52: 0 | G52: 18 | H52: 0 | I52: 0 | J52: Serviço | K52: 1.4.18. | L52: SINAPI | M52: 74020/002 | N52: Ensaios e laudos atestando teor de cap, densidade, espessura. (A cada 50 m) | O52: m³ | P52: =OFFSET(PLQ!$E$12,ROW($P52)-ROW(P$12),0) -> 289.4 | Q52: 19 | R52: BDI 1 | S52: 23.18 | T52: 6708.29 | V52: =IF(OR($A52=0,$A52="S",$A52>CFF!$A$9),"",MAX(V$12:OFFSET(V52,-1,0))+1) ->  | W52: SINAPI-74020/002 | X52: 11295 | Y52: =IF(Import.Desoneracao="sim",Referencia.Desonerado,Referencia.NaoDesonerado) -> 19.13 | Z52: =ROUND(IF(ISNUMBER(R52),R52,IF(LEFT(R52,3)="BDI",HLOOKUP(R52,DADOS!$T$37:$X$38,2,FALSE),0)),15-11*$X$5) -> 0.22
A53: 2 | B53: =IF(OR(A53="S",A53=0),0,IF(ISERROR(I53),H53,SMALL(H53:I53,1))) -> 6 | C53: 1 | D53: 5 | E53: 0 | F53: 0 | G53: 0 | H53: 6 | J53: Nível 2 | K53: 1.5. | N53: SINALIZAÇÃO | P53: =OFFSET(PLQ!$E$12,ROW($P53)-ROW(P$12),0) -> 0 | R53: BDI 1 | S53: 0 | T53: 7725.49 | V53: =IF(OR($A53=0,$A53="S",$A53>CFF!$A$9),"",MAX(V$12:OFFSET(V53,-1,0))+1) -> 6 | W53: FALSE | X53: X | Y53: =IF(Import.Desoneracao="sim",Referencia.Desonerado,Referencia.NaoDesonerado) -> 0 | Z53: =ROUND(IF(ISNUMBER(R53),R53,IF(LEFT(R53,3)="BDI",HLOOKUP(R53,DADOS!$T$37:$X$38,2,FALSE),0)),15-11*$X$5) -> 0.22
A54: S | B54: 0 | C54: 1 | D54: 5 | E54: 0 | F54: 0 | G54: 1 | H54: 0 | I54: 0 | J54: Serviço | K54: 1.5.1. | L54: SINAPI | M54: 72947 | N54: Pintura de faixa horizontal amarela - 10 cm | O54: m² | P54: =OFFSET(PLQ!$E$12,ROW($P54)-ROW(P$12),0) -> 45.5 | Q54: 20.64 | R54: BDI 1 | S54: 25.18 | T54: 1145.69 | V54: =IF(OR($A54=0,$A54="S",$A54>CFF!$A$9),"",MAX(V$12:OFFSET(V54,-1,0))+1) ->  | W54: SINAPI-72947 | X54: 10369 | Y54: =IF(Import.Desoneracao="sim",Referencia.Desonerado,Referencia.NaoDesonerado) -> 20.64 | Z54: =ROUND(IF(ISNUMBER(R54),R54,IF(LEFT(R54,3)="BDI",HLOOKUP(R54,DADOS!$T$37:$X$38,2,FALSE),0)),15-11*$X$5) -> 0.22
A55: S | B55: 0 | C55: 1 | D55: 5 | E55: 0 | F55: 0 | G55: 2 | H55: 0 | I55: 0 | J55: Serviço | K55: 1.5.2. | L55: SINAPI | M55: 72947 | N55: Pintura de faixa horizontal branca - 12 cm | O55: m² | P55: =OFFSET(PLQ!$E$12,ROW($P55)-ROW(P$12),0) -> 50.1 | Q55: 20.64 | R55: BDI 1 | S55: 25.18 | T55: 1261.52 | V55: =IF(OR($A55=0,$A55="S",$A55>CFF!$A$9),"",MAX(V$12:OFFSET(V55,-1,0))+1) ->  | W55: SINAPI-72947 | X55: 10369 | Y55: =IF(Import.Desoneracao="sim",Referencia.Desonerado,Referencia.NaoDesonerado) -> 20.64 | Z55: =ROUND(IF(ISNUMBER(R55),R55,IF(LEFT(R55,3)="BDI",HLOOKUP(R55,DADOS!$T$37:$X$38,2,FALSE),0)),15-11*$X$5) -> 0.22
A56: =CHOOSE(1+LOG(1+2*(J56="Meta")+4*(J56="Nível 2")+8*(J56="Nível 3")+16*(J56="Nível 4")+32*(J56="Serviço"),2),0,1,2,3,4,"S") -> S | B56: =IF(OR(A56="S",A56=0),0,IF(ISERROR(I56),H56,SMALL(H56:I56,1))) -> 0 | C56: 1 | D56: 5 | E56: 0 | F56: 0 | G56: 3 | H56: 0 | I56: 0 | J56: Serviço | K56: 1.5.3. | L56: SINAPI | M56: 72947 | N56: Pintura de faixas de pedestres branca - 40 cm | O56: m² | P56: =OFFSET(PLQ!$E$12,ROW($P56)-ROW(P$12),0) -> 136.8 | Q56: 20.64 | R56: BDI 1 | S56: 25.18 | T56: 3444.62 | V56: =IF(OR($A56=0,$A56="S",$A56>CFF!$A$9),"",MAX(V$12:OFFSET(V56,-1,0))+1) ->  | W56: SINAPI-72947 | X56: 10369 | Y56: =IF(Import.Desoneracao="sim",Referencia.Desonerado,Referencia.NaoDesonerado) -> 20.64 | Z56: =ROUND(IF(ISNUMBER(R56),R56,IF(LEFT(R56,3)="BDI",HLOOKUP(R56,DADOS!$T$37:$X$38,2,FALSE),0)),15-11*$X$5) -> 0.22
A57: =CHOOSE(1+LOG(1+2*(J57="Meta")+4*(J57="Nível 2")+8*(J57="Nível 3")+16*(J57="Nível 4")+32*(J57="Serviço"),2),0,1,2,3,4,"S") -> S | B57: =IF(OR(A57="S",A57=0),0,IF(ISERROR(I57),H57,SMALL(H57:I57,1))) -> 0 | C57: 1 | D57: 5 | E57: 0 | F57: 0 | G57: 4 | H57: 0 | I57: 0 | J57: Serviço | K57: 1.5.4. | L57: SINAPI | M57: 91131 | N57: Placa Octogonal "PARE" com L=25 cm - Totalmente refletiva, com suporte de aço galvanizado Ø 50 mm | O57: unid. | P57: =OFFSET(PLQ!$E$12,ROW($P57)-ROW(P$12),0) -> 1 | Q57: 313 | R57: BDI 1 | S57: 381.86 | T57: 381.86 | V57: =IF(OR($A57=0,$A57="S",$A57>CFF!$A$9),"",MAX(V$12:OFFSET(V57,-1,0))+1) ->  | W57: SINAPI-91131 | X57: 5621 | Y57: =IF(Import.Desoneracao="sim",Referencia.Desonerado,Referencia.NaoDesonerado) -> 313.01 | Z57: =ROUND(IF(ISNUMBER(R57),R57,IF(LEFT(R57,3)="BDI",HLOOKUP(R57,DADOS!$T$37:$X$38,2,FALSE),0)),15-11*$X$5) -> 0.22
A58: =CHOOSE(1+LOG(1+2*(J58="Meta")+4*(J58="Nível 2")+8*(J58="Nível 3")+16*(J58="Nível 4")+32*(J58="Serviço"),2),0,1,2,3,4,"S") -> S | B58: =IF(OR(A58="S",A58=0),0,IF(ISERROR(I58),H58,SMALL(H58:I58,1))) -> 0 | C58: 1 | D58: 5 | E58: 0 | F58: 0 | G58: 5 | H58: 0 | I58: 0 | J58: Serviço | K58: 1.5.5. | L58: SINAPI | M58: 94802 | N58: Placa de Identificação de ruas - com suporte de aço galvanizado Ø 50 mm | O58: unid. | P58: =OFFSET(PLQ!$E$12,ROW($P58)-ROW(P$12),0) -> 4 | Q58: 305.7 | R58: BDI 1 | S58: 372.95 | T58: 1491.8 | V58: =IF(OR($A58=0,$A58="S",$A58>CFF!$A$9),"",MAX(V$12:OFFSET(V58,-1,0))+1) ->  | W58: SINAPI-94802 | X58: 5624 | Y58: =IF(Import.Desoneracao="sim",Referencia.Desonerado,Referencia.NaoDesonerado) -> 305.7 | Z58: =ROUND(IF(ISNUMBER(R58),R58,IF(LEFT(R58,3)="BDI",HLOOKUP(R58,DADOS!$T$37:$X$38,2,FALSE),0)),15-11*$X$5) -> 0.22
A59: -1 | C59: 0 | D59: 0 | E59: 0 | F59: 0 | G59: 0
K60: Encargos sociais: | M60: Para elaboração deste orçamento, foram utilizados os encargos sociais do SINAPI para a Unidade da Federação indicada.
K62: Observações:
K67: =IF(AND($X$3=FALSE,$X$4=FALSE,$X$5=FALSE,$X$6=FALSE,$X$7=FALSE),"Não foi considerado arredondamento nos valores da planilha.",CONCATENATE("Foi considerado arredondamento de duas casas decimais para ",IF($X$3=TRUE,"Quantidade; ",""),IF($X$4=TRUE,"Custo Unitário; ",""),IF($X$5=TRUE,"BDI; ",""),IF($X$6=TRUE,"Preço Unitário; ",""),IF($X$7=TRUE,"Preço Total.",""))) -> Foi considerado arredondamento de duas casas decimais para Quantidade; Custo Unitário; BDI; Preço Unitário; Preço Total.
K70: =Import.Município -> Bom Jesus / SC
K71: Local
K73: =TODAY() -> 2018-01-25
K74: Data

Sheet PLQ
E1: PLQ - | F1: PLANILHA DE LEVANTAMENTO DE QUANTIDADES
E7: =OFFSET(PO!$P$12,ROW($E7)-ROW(E$12),0) -> 0
E9: - | F9: Estaca 00 á estaca 5 + 11 m | G9: Estaca 5 + 11 m á estaca 10 + 6,50 m | H9: Estaca 10 + 6,50 m á estaca 15 + 1,10 m
A10: Nível | B10: Item | C10: Descrição | D10: Unid. | E10: Quantidade | F10: =IF(OFFSET(F10,0,-1)="Quantidade",1,OFFSET(F10,0,-1)+1) -> 1 | G10: 2 | H10: 3 | I10: 4 | J10: 5 | K10: 6 | L10: 7 | M10: 8 | N10: 9 | O10: 10 | U10: =IF(OFFSET(U10,0,-1)="Quantidade",1,OFFSET(U10,0,-1)+1) -> 1
A11: =OFFSET(PO!J$12,ROW(A11)-ROW($A$12),0) -> Serviço | B11: =IF($A11=0,"",OFFSET(PO!K$12,ROW(B11)-ROW(B$12),0)) ->  | C11: =IF(OFFSET(PO!N$12,ROW(C11)-ROW(C$12),0)=0,"",OFFSET(PO!N$12,ROW(C11)-ROW(C$12),0)) ->  | D11: =IF(OFFSET(PO!O$12,ROW(D11)-ROW(D$12),0)=0,"",OFFSET(PO!O$12,ROW(D11)-ROW(D$12),0)) ->  | E11: =IF($A11<>"Serviço",0,ROUND(SUMIF($F$9:$P$9,"<>",$F11:$P11),15-13*PO!$X$3)) -> 0
A12: =PO!J12 -> LOTE | C12: =PO!N12 -> Lote 01
A13: =OFFSET(PO!J$12,ROW(A13)-ROW($A$12),0) -> Meta | B13: =IF($A13=0,"",OFFSET(PO!K$12,ROW(B13)-ROW(B$12),0)) -> 1. | C13: =IF(OFFSET(PO!N$12,ROW(C13)-ROW(C$12),0)=0,"",OFFSET(PO!N$12,ROW(C13)-ROW(C$12),0)) -> PAVIMENTAÇÃO | D13: =IF(OFFSET(PO!O$12,ROW(D13)-ROW(D$12),0)=0,"",OFFSET(PO!O$12,ROW(D13)-ROW(D$12),0)) ->  | E13: =IF($A13<>"Serviço",0,ROUND(SUMIF($F$9:$P$9,"<>",$F13:$P13),15-13*PO!$X$3)) -> 0 | F13: 0
A14: =OFFSET(PO!J$12,ROW(A14)-ROW($A$12),0) -> Nível 2 | B14: =IF($A14=0,"",OFFSET(PO!K$12,ROW(B14)-ROW(B$12),0)) -> 1.1. | C14: =IF(OFFSET(PO!N$12,ROW(C14)-ROW(C$12),0)=0,"",OFFSET(PO!N$12,ROW(C14)-ROW(C$12),0)) -> SERVIÇOS INICIAS | D14: =IF(OFFSET(PO!O$12,ROW(D14)-ROW(D$12),0)=0,"",OFFSET(PO!O$12,ROW(D14)-ROW(D$12),0)) ->  | E14: =IF($A14<>"Serviço",0,ROUND(SUMIF($F$9:$P$9,"<>",$F14:$P14),15-13*PO!$X$3)) -> 0 | F14: 0
A15: =OFFSET(PO!J$12,ROW(A15)-ROW($A$12),0) -> Serviço | B15: =IF($A15=0,"",OFFSET(PO!K$12,ROW(B15)-ROW(B$12),0)) -> 1.1.1. | C15: =IF(OFFSET(PO!N$12,ROW(C15)-ROW(C$12),0)=0,"",OFFSET(PO!N$12,ROW(C15)-ROW(C$12),0)) -> Placa de obra em chapa de aço galvanizado 1,25 x 2,00 m | D15: =IF(OFFSET(PO!O$12,ROW(D15)-ROW(D$12),0)=0,"",OFFSET(PO!O$12,ROW(D15)-ROW(D$12),0)) -> m² | E15: =IF($A15<>"Serviço",0,ROUND(SUMIF($F$9:$P$9,"<>",$F15:$P15),15-13*PO!$X$3)) -> 2.5 | F15: 2.5
A16: =OFFSET(PO!J$12,ROW(A16)-ROW($A$12),0) -> Serviço | B16: =IF($A16=0,"",OFFSET(PO!K$12,ROW(B16)-ROW(B$12),0)) -> 1.1.2. | C16: =IF(OFFSET(PO!N$12,ROW(C16)-ROW(C$12),0)=0,"",OFFSET(PO!N$12,ROW(C16)-ROW(C$12),0)) -> Engenheiro Civil | D16: =IF(OFFSET(PO!O$12,ROW(D16)-ROW(D$12),0)=0,"",OFFSET(PO!O$12,ROW(D16)-ROW(D$12),0)) -> h | E16: =IF($A16<>"Serviço",0,ROUND(SUMIF($F$9:$P$9,"<>",$F16:$P16),15-13*PO!$X$3)) -> 24 | F16: 8 | G16: 8 | H16: 8
A17: =OFFSET(PO!J$12,ROW(A17)-ROW($A$12),0) -> Serviço | B17: =IF($A17=0,"",OFFSET(PO!K$12,ROW(B17)-ROW(B$12),0)) -> 1.1.3. | C17: =IF(OFFSET(PO!N$12,ROW(C17)-ROW(C$12),0)=0,"",OFFSET(PO!N$12,ROW(C17)-ROW(C$12),0)) -> Mestre de obras | D17: =IF(OFFSET(PO!O$12,ROW(D17)-ROW(D$12),0)=0,"",OFFSET(PO!O$12,ROW(D17)-ROW(D$12),0)) -> h | E17: =IF($A17<>"Serviço",0,ROUND(SUMIF($F$9:$P$9,"<>",$F17:$P17),15-13*PO!$X$3)) -> 40 | F17: 15 | G17: 15 | H17: 10
A18: =OFFSET(PO!J$12,ROW(A18)-ROW($A$12),0) -> Serviço | B18: =IF($A18=0,"",OFFSET(PO!K$12,ROW(B18)-ROW(B$12),0)) -> 1.1.4. | C18: =IF(OFFSET(PO!N$12,ROW(C18)-ROW(C$12),0)=0,"",OFFSET(PO!N$12,ROW(C18)-ROW(C$12),0)) -> Locação de obra de pavimentação asfaltica com equipe de topografia | D18: =IF(OFFSET(PO!O$12,ROW(D18)-ROW(D$12),0)=0,"",OFFSET(PO!O$12,ROW(D18)-ROW(D$12),0)) -> h | E18: =IF($A18<>"Serviço",0,ROUND(SUMIF($F$9:$P$9,"<>",$F18:$P18),15-13*PO!$X$3)) -> 5 | F18: 2 | G18: 1 | H18: 2
A19: =OFFSET(PO!J$12,ROW(A19)-ROW($A$12),0) -> Nível 2 | B19: =IF($A19=0,"",OFFSET(PO!K$12,ROW(B19)-ROW(B$12),0)) -> 1.2. | C19: =IF(OFFSET(PO!N$12,ROW(C19)-ROW(C$12),0)=0,"",OFFSET(PO!N$12,ROW(C19)-ROW(C$12),0)) -> MOBILIZAÇÃO E DESMOBILIZAÇÃO | D19: =IF(OFFSET(PO!O$12,ROW(D19)-ROW(D$12),0)=0,"",OFFSET(PO!O$12,ROW(D19)-ROW(D$12),0)) ->  | E19: =IF($A19<>"Serviço",0,ROUND(SUMIF($F$9:$P$9,"<>",$F19:$P19),15-13*PO!$X$3)) -> 0 | F19: 0
A20: =OFFSET(PO!J$12,ROW(A20)-ROW($A$12),0) -> Serviço | B20: =IF($A20=0,"",OFFSET(PO!K$12,ROW(B20)-ROW(B$12),0)) -> 1.2.1. | C20: =IF(OFFSET(PO!N$12,ROW(C20)-ROW(C$12),0)=0,"",OFFSET(PO!N$12,ROW(C20)-ROW(C$12),0)) -> Mobilização | D20: =IF(OFFSET(PO!O$12,ROW(D20)-ROW(D$12),0)=0,"",OFFSET(PO!O$12,ROW(D20)-ROW(D$12),0)) -> unid. | E20: =IF($A20<>"Serviço",0,ROUND(SUMIF($F$9:$P$9,"<>",$F20:$P20),15-13*PO!$X$3)) -> 1 | F20: 1
A21: =OFFSET(PO!J$12,ROW(A21)-ROW($A$12),0) -> Serviço | B21: =IF($A21=0,"",OFFSET(PO!K$12,ROW(B21)-ROW(B$12),0)) -> 1.2.2. | C21: =IF(OFFSET(PO!N$12,ROW(C21)-ROW(C$12),0)=0,"",OFFSET(PO!N$12,ROW(C21)-ROW(C$12),0)) -> Desmobilização | D21: =IF(OFFSET(PO!O$12,ROW(D21)-ROW(D$12),0)=0,"",OFFSET(PO!O$12,ROW(D21)-ROW(D$12),0)) -> unid. | E21: =IF($A21<>"Serviço",0,ROUND(SUMIF($F$9:$P$9,"<>",$F21:$P21),15-13*PO!$X$3)) -> 1 | H21: 1
A22: =OFFSET(PO!J$12,ROW(A22)-ROW($A$12),0) -> Nível 2 | B22: =IF($A22=0,"",OFFSET(PO!K$12,ROW(B22)-ROW(B$12),0)) -> 1.3. | C22: =IF(OFFSET(PO!N$12,ROW(C22)-ROW(C$12),0)=0,"",OFFSET(PO!N$12,ROW(C22)-ROW(C$12),0)) -> DRENAGEM | D22: =IF(OFFSET(PO!O$12,ROW(D22)-ROW(D$12),0)=0,"",OFFSET(PO!O$12,ROW(D22)-ROW(D$12),0)) ->  | E22: =IF($A22<>"Serviço",0,ROUND(SUMIF($F$9:$P$9,"<>",$F22:$P22),15-13*PO!$X$3)) -> 0 | F22: 0
A23: =OFFSET(PO!J$12,ROW(A23)-ROW($A$12),0) -> Serviço | B23: =IF($A23=0,"",OFFSET(PO!K$12,ROW(B23)-ROW(B$12),0)) -> 1.3.1. | C23: =IF(OFFSET(PO!N$12,ROW(C23)-ROW(C$12),0)=0,"",OFFSET(PO!N$12,ROW(C23)-ROW(C$12),0)) -> Assentamentos de tubos BSTC Ø 400mm | D23: =IF(OFFSET(PO!O$12,ROW(D23)-ROW(D$12),0)=0,"",OFFSET(PO!O$12,ROW(D23)-ROW(D$12),0)) -> m | E23: =IF($A23<>"Serviço",0,ROUND(SUMIF($F$9:$P$9,"<>",$F23:$P23),15-13*PO!$X$3)) -> 12 | G23: 12
A24: =OFFSET(PO!J$12,ROW(A24)-ROW($A$12),0) -> Serviço | B24: =IF($A24=0,"",OFFSET(PO!K$12,ROW(B24)-ROW(B$12),0)) -> 1.3.2. | C24: =IF(OFFSET(PO!N$12,ROW(C24)-ROW(C$12),0)=0,"",OFFSET(PO!N$12,ROW(C24)-ROW(C$12),0)) -> Tubo de concreto simples 400 mm Classe PS1 | D24: =IF(OFFSET(PO!O$12,ROW(D24)-ROW(D$12),0)=0,"",OFFSET(PO!O$12,ROW(D24)-ROW(D$12),0)) -> m | E24: =IF($A24<>"Serviço",0,ROUND(SUMIF($F$9:$P$9,"<>",$F24:$P24),15-13*PO!$X$3)) -> 12 | G24: 12
A25: =OFFSET(PO!J$12,ROW(A25)-ROW($A$12),0) -> Serviço | B25: =IF($A25=0,"",OFFSET(PO!K$12,ROW(B25)-ROW(B$12),0)) -> 1.3.3. | C25: =IF(OFFSET(PO!N$12,ROW(C25)-ROW(C$12),0)=0,"",OFFSET(PO!N$12,ROW(C25)-ROW(C$12),0)) -> Transporte comercial com caminhão carroceria 9 T - DMT = 50 Km | D25: =IF(OFFSET(PO!O$12,ROW(D25)-ROW(D$12),0)=0,"",OFFSET(PO!O$12,ROW(D25)-ROW(D$12),0)) -> Txkm | E25: =IF($A25<>"Serviço",0,ROUND(SUMIF($F$9:$P$9,"<>",$F25:$P25),15-13*PO!$X$3)) -> 71.7 | G25: 71.7
A26: =OFFSET(PO!J$12,ROW(A26)-ROW($A$12),0) -> Serviço | B26: =IF($A26=0,"",OFFSET(PO!K$12,ROW(B26)-ROW(B$12),0)) -> 1.3.4. | C26: =IF(OFFSET(PO!N$12,ROW(C26)-ROW(C$12),0)=0,"",OFFSET(PO!N$12,ROW(C26)-ROW(C$12),0)) -> Escavação de valas p/ galerias tubulares | D26: =IF(OFFSET(PO!O$12,ROW(D26)-ROW(D$12),0)=0,"",OFFSET(PO!O$12,ROW(D26)-ROW(D$12),0)) -> m³ | E26: =IF($A26<>"Serviço",0,ROUND(SUMIF($F$9:$P$9,"<>",$F26:$P26),15-13*PO!$X$3)) -> 14.4 | G26: 14.4
A27: =OFFSET(PO!J$12,ROW(A27)-ROW($A$12),0) -> Serviço | B27: =IF($A27=0,"",OFFSET(PO!K$12,ROW(B27)-ROW(B$12),0)) -> 1.3.5. | C27: =IF(OFFSET(PO!N$12,ROW(C27)-ROW(C$12),0)=0,"",OFFSET(PO!N$12,ROW(C27)-ROW(C$12),0)) -> Reaterro de valas p/ galerias tubulares | D27: =IF(OFFSET(PO!O$12,ROW(D27)-ROW(D$12),0)=0,"",OFFSET(PO!O$12,ROW(D27)-ROW(D$12),0)) -> m³ | E27: =IF($A27<>"Serviço",0,ROUND(SUMIF($F$9:$P$9,"<>",$F27:$P27),15-13*PO!$X$3)) -> 10 | G27: 10
A28: =OFFSET(PO!J$12,ROW(A28)-ROW($A$12),0) -> Serviço | B28: =IF($A28=0,"",OFFSET(PO!K$12,ROW(B28)-ROW(B$12),0)) -> 1.3.6. | C28: =IF(OFFSET(PO!N$12,ROW(C28)-ROW(C$12),0)=0,"",OFFSET(PO!N$12,ROW(C28)-ROW(C$12),0)) -> Recomposição com base de brita graduada compacatada - esp 30 cm | D28: =IF(OFFSET(PO!O$12,ROW(D28)-ROW(D$12),0)=0,"",OFFSET(PO!O$12,ROW(D28)-ROW(D$12),0)) -> m³ | E28: =IF($A28<>"Serviço",0,ROUND(SUMIF($F$9:$P$9,"<>",$F28:$P28),15-13*PO!$X$3)) -> 2.9 | G28: 2.9
A29: =OFFSET(PO!J$12,ROW(A29)-ROW($A$12),0) -> Serviço | B29: =IF($A29=0,"",OFFSET(PO!K$12,ROW(B29)-ROW(B$12),0)) -> 1.3.7. | C29: =IF(OFFSET(PO!N$12,ROW(C29)-ROW(C$12),0)=0,"",OFFSET(PO!N$12,ROW(C29)-ROW(C$12),0)) -> Transporte de brita graduada - DMT = 50 Km | D29: =IF(OFFSET(PO!O$12,ROW(D29)-ROW(D$12),0)=0,"",OFFSET(PO!O$12,ROW(D29)-ROW(D$12),0)) -> m³xkm | E29: =IF($A29<>"Serviço",0,ROUND(SUMIF($F$9:$P$9,"<>",$F29:$P29),15-13*PO!$X$3)) -> 145 | G29: 145
A30: =OFFSET(PO!J$12,ROW(A30)-ROW($A$12),0) -> Serviço | B30: =IF($A30=0,"",OFFSET(PO!K$12,ROW(B30)-ROW(B$12),0)) -> 1.3.8. | C30: =IF(OFFSET(PO!N$12,ROW(C30)-ROW(C$12),0)=0,"",OFFSET(PO!N$12,ROW(C30)-ROW(C$12),0)) -> Imprimação da Base com asfalto diluído CM 30 - taxa = 1,2 L/m² | D30: =IF(OFFSET(PO!O$12,ROW(D30)-ROW(D$12),0)=0,"",OFFSET(PO!O$12,ROW(D30)-ROW(D$12),0)) -> m² | E30: =IF($A30<>"Serviço",0,ROUND(SUMIF($F$9:$P$9,"<>",$F30:$P30),15-13*PO!$X$3)) -> 9.6 | G30: 9.6
A31: =OFFSET(PO!J$12,ROW(A31)-ROW($A$12),0) -> Serviço | B31: =IF($A31=0,"",OFFSET(PO!K$12,ROW(B31)-ROW(B$12),0)) -> 1.3.9. | C31: =IF(OFFSET(PO!N$12,ROW(C31)-ROW(C$12),0)=0,"",OFFSET(PO!N$12,ROW(C31)-ROW(C$12),0)) -> Transporte de material betuminoso CM 30 - DMT = 50 Km | D31: =IF(OFFSET(PO!O$12,ROW(D31)-ROW(D$12),0)=0,"",OFFSET(PO!O$12,ROW(D31)-ROW(D$12),0)) -> Txkm | E31: =IF($A31<>"Serviço",0,ROUND(SUMIF($F$9:$P$9,"<>",$F31:$P31),15-13*PO!$X$3)) -> 0.6 | G31: 0.6
A32: =OFFSET(PO!J$12,ROW(A32)-ROW($A$12),0) -> Serviço | B32: =IF($A32=0,"",OFFSET(PO!K$12,ROW(B32)-ROW(B$12),0)) -> 1.3.10. | C32: =IF(OFFSET(PO!N$12,ROW(C32)-ROW(C$12),0)=0,"",OFFSET(PO!N$12,ROW(C32)-ROW(C$12),0)) -> Caixa coletora tipo BL completa | D32: =IF(OFFSET(PO!O$12,ROW(D32)-ROW(D$12),0)=0,"",OFFSET(PO!O$12,ROW(D32)-ROW(D$12),0)) -> unid. | E32: =IF($A32<>"Serviço",0,ROUND(SUMIF($F$9:$P$9,"<>",$F32:$P32),15-13*PO!$X$3)) -> 2 | G32: 2
A33: =OFFSET(PO!J$12,ROW(A33)-ROW($A$12),0) -> Serviço | B33: =IF($A33=0,"",OFFSET(PO!K$12,ROW(B33)-ROW(B$12),0)) -> 1.3.11. | C33: =IF(OFFSET(PO!N$12,ROW(C33)-ROW(C$12),0)=0,"",OFFSET(PO!N$12,ROW(C33)-ROW(C$12),0)) -> Elevação de caixa coletora tipo boca de lobo, com reaproveitamento da grade de ferro | D33: =IF(OFFSET(PO!O$12,ROW(D33)-ROW(D$12),0)=0,"",OFFSET(PO!O$12,ROW(D33)-ROW(D$12),0)) -> unid. | E33: =IF($A33<>"Serviço",0,ROUND(SUMIF($F$9:$P$9,"<>",$F33:$P33),15-13*PO!$X$3)) -> 17 | F33: 6 | G33: 7 | H33: 4
A34: =OFFSET(PO!J$12,ROW(A34)-ROW($A$12),0) -> Nível 2 | B34: =IF($A34=0,"",OFFSET(PO!K$12,ROW(B34)-ROW(B$12),0)) -> 1.4. | C34: =IF(OFFSET(PO!N$12,ROW(C34)-ROW(C$12),0)=0,"",OFFSET(PO!N$12,ROW(C34)-ROW(C$12),0)) -> PAVIMENTAÇÃO | D34: =IF(OFFSET(PO!O$12,ROW(D34)-ROW(D$12),0)=0,"",OFFSET(PO!O$12,ROW(D34)-ROW(D$12),0)) ->  | E34: =IF($A34<>"Serviço",0,ROUND(SUMIF($F$9:$P$9,"<>",$F34:$P34),15-13*PO!$X$3)) -> 0 | F34: 0
A35: =OFFSET(PO!J$12,ROW(A35)-ROW($A$12),0) -> Serviço | B35: =IF($A35=0,"",OFFSET(PO!K$12,ROW(B35)-ROW(B$12),0)) -> 1.4.1. | C35: =IF(OFFSET(PO!N$12,ROW(C35)-ROW(C$12),0)=0,"",OFFSET(PO!N$12,ROW(C35)-ROW(C$12),0)) -> Escavação mecanizada - e: 25 cm | D35: =IF(OFFSET(PO!O$12,ROW(D35)-ROW(D$12),0)=0,"",OFFSET(PO!O$12,ROW(D35)-ROW(D$12),0)) -> m³ | E35: =IF($A35<>"Serviço",0,ROUND(SUMIF($F$9:$P$9,"<>",$F35:$P35),15-13*PO!$X$3)) -> 8 | F35: 8
A36: =OFFSET(PO!J$12,ROW(A36)-ROW($A$12),0) -> Serviço | B36: =IF($A36=0,"",OFFSET(PO!K$12,ROW(B36)-ROW(B$12),0)) -> 1.4.2. | C36: =IF(OFFSET(PO!N$12,ROW(C36)-ROW(C$12),0)=0,"",OFFSET(PO!N$12,ROW(C36)-ROW(C$12),0)) -> Regularização e compactação do sub-leito a 100% do PN | D36: =IF(OFFSET(PO!O$12,ROW(D36)-ROW(D$12),0)=0,"",OFFSET(PO!O$12,ROW(D36)-ROW(D$12),0)) -> m² | E36: =IF($A36<>"Serviço",0,ROUND(SUMIF($F$9:$P$9,"<>",$F36:$P36),15-13*PO!$X$3)) -> 32 | F36: 32
A37: =OFFSET(PO!J$12,ROW(A37)-ROW($A$12),0) -> Serviço | B37: =IF($A37=0,"",OFFSET(PO!K$12,ROW(B37)-ROW(B$12),0)) -> 1.4.3. | C37: =IF(OFFSET(PO!N$12,ROW(C37)-ROW(C$12),0)=0,"",OFFSET(PO!N$12,ROW(C37)-ROW(C$12),0)) -> Sub base macadame hidraulico espessura = 15 cm | D37: =IF(OFFSET(PO!O$12,ROW(D37)-ROW(D$12),0)=0,"",OFFSET(PO!O$12,ROW(D37)-ROW(D$12),0)) -> m³ | E37: =IF($A37<>"Serviço",0,ROUND(SUMIF($F$9:$P$9,"<>",$F37:$P37),15-13*PO!$X$3)) -> 4.8 | F37: 4.8
A38: =OFFSET(PO!J$12,ROW(A38)-ROW($A$12),0) -> Serviço | B38: =IF($A38=0,"",OFFSET(PO!K$12,ROW(B38)-ROW(B$12),0)) -> 1.4.4. | C38: =IF(OFFSET(PO!N$12,ROW(C38)-ROW(C$12),0)=0,"",OFFSET(PO!N$12,ROW(C38)-ROW(C$12),0)) -> Base de brita graduada compactada - esp= 10 cm | D38: =IF(OFFSET(PO!O$12,ROW(D38)-ROW(D$12),0)=0,"",OFFSET(PO!O$12,ROW(D38)-ROW(D$12),0)) -> m³ | E38: =IF($A38<>"Serviço",0,ROUND(SUMIF($F$9:$P$9,"<>",$F38:$P38),15-13*PO!$X$3)) -> 3.2 | F38: 3.2
A39: =OFFSET(PO!J$12,ROW(A39)-ROW($A$12),0) -> Serviço | B39: =IF($A39=0,"",OFFSET(PO!K$12,ROW(B39)-ROW(B$12),0)) -> 1.4.5. | C39: =IF(OFFSET(PO!N$12,ROW(C39)-ROW(C$12),0)=0,"",OFFSET(PO!N$12,ROW(C39)-ROW(C$12),0)) -> Transporte de macadame hidraulico e brita graduada - DMT = 50 Km | D39: =IF(OFFSET(PO!O$12,ROW(D39)-ROW(D$12),0)=0,"",OFFSET(PO!O$12,ROW(D39)-ROW(D$12),0)) -> m³xkm | E39: =IF($A39<>"Serviço",0,ROUND(SUMIF($F$9:$P$9,"<>",$F39:$P39),15-13*PO!$X$3)) -> 400 | F39: 400
A40: =OFFSET(PO!J$12,ROW(A40)-ROW($A$12),0) -> Serviço | B40: =IF($A40=0,"",OFFSET(PO!K$12,ROW(B40)-ROW(B$12),0)) -> 1.4.6. | C40: =IF(OFFSET(PO!N$12,ROW(C40)-ROW(C$12),0)=0,"",OFFSET(PO!N$12,ROW(C40)-ROW(C$12),0)) -> Imprimação da Base com asfalto diluído CM 30 - taxa = 1,2 L/m² | D40: =IF(OFFSET(PO!O$12,ROW(D40)-ROW(D$12),0)=0,"",OFFSET(PO!O$12,ROW(D40)-ROW(D$12),0)) -> m² | E40: =IF($A40<>"Serviço",0,ROUND(SUMIF($F$9:$P$9,"<>",$F40:$P40),15-13*PO!$X$3)) -> 32 | F40: 32
A41: =OFFSET(PO!J$12,ROW(A41)-ROW($A$12),0) -> Serviço | B41: =IF($A41=0,"",OFFSET(PO!K$12,ROW(B41)-ROW(B$12),0)) -> 1.4.7. | C41: =IF(OFFSET(PO!N$12,ROW(C41)-ROW(C$12),0)=0,"",OFFSET(PO!N$12,ROW(C41)-ROW(C$12),0)) -> Transporte de material betuminoso CM 30 - DMT = 50 Km | D41: =IF(OFFSET(PO!O$12,ROW(D41)-ROW(D$12),0)=0,"",OFFSET(PO!O$12,ROW(D41)-ROW(D$12),0)) -> Txkm | E41: =IF($A41<>"Serviço",0,ROUND(SUMIF($F$9:$P$9,"<>",$F41:$P41),15-13*PO!$X$3)) -> 1.9 | F41: 1.9
A42: =OFFSET(PO!J$12,ROW(A42)-ROW($A$12),0) -> Serviço | B42: =IF($A42=0,"",OFFSET(PO!K$12,ROW(B42)-ROW(B$12),0)) -> 1.4.8. | C42: =IF(OFFSET(PO!N$12,ROW(C42)-ROW(C$12),0)=0,"",OFFSET(PO!N$12,ROW(C42)-ROW(C$12),0)) -> Limpeza do pavimento | D42: =IF(OFFSET(PO!O$12,ROW(D42)-ROW(D$12),0)=0,"",OFFSET(PO!O$12,ROW(D42)-ROW(D$12),0)) -> m² | E42: =IF($A42<>"Serviço",0,ROUND(SUMIF($F$9:$P$9,"<>",$F42:$P42),15-13*PO!$X$3)) -> 4134 | F42: 1507.3 | G42: 1318.9 | H42: 1307.8
A43: =OFFSET(PO!J$12,ROW(A43)-ROW($A$12),0) -> Serviço | B43: =IF($A43=0,"",OFFSET(PO!K$12,ROW(B43)-ROW(B$12),0)) -> 1.4.9. | C43: =IF(OFFSET(PO!N$12,ROW(C43)-ROW(C$12),0)=0,"",OFFSET(PO!N$12,ROW(C43)-ROW(C$12),0)) -> Pintura de Ligação com emulsão RR-2C - taxa = 0,50 L/m² | D43: =IF(OFFSET(PO!O$12,ROW(D43)-ROW(D$12),0)=0,"",OFFSET(PO!O$12,ROW(D43)-ROW(D$12),0)) -> m² | E43: =IF($A43<>"Serviço",0,ROUND(SUMIF($F$9:$P$9,"<>",$F43:$P43),15-13*PO!$X$3)) -> 4134 | F43: 1507.3 | G43: 1318.9 | H43: 1307.8
A44: =OFFSET(PO!J$12,ROW(A44)-ROW($A$12),0) -> Serviço | B44: =IF($A44=0,"",OFFSET(PO!K$12,ROW(B44)-ROW(B$12),0)) -> 1.4.10. | C44: =IF(OFFSET(PO!N$12,ROW(C44)-ROW(C$12),0)=0,"",OFFSET(PO!N$12,ROW(C44)-ROW(C$12),0)) -> Pintura de Ligação com emulsão RR-2C - taxa = 0,30 L/m² | D44: =IF(OFFSET(PO!O$12,ROW(D44)-ROW(D$12),0)=0,"",OFFSET(PO!O$12,ROW(D44)-ROW(D$12),0)) -> m² | E44: =IF($A44<>"Serviço",0,ROUND(SUMIF($F$9:$P$9,"<>",$F44:$P44),15-13*PO!$X$3)) -> 4134 | F44: 1507.3 | G44: 1318.9 | H44: 1307.8
A45: =OFFSET(PO!J$12,ROW(A45)-ROW($A$12),0) -> Serviço | B45: =IF($A45=0,"",OFFSET(PO!K$12,ROW(B45)-ROW(B$12),0)) -> 1.4.11. | C45: =IF(OFFSET(PO!N$12,ROW(C45)-ROW(C$12),0)=0,"",OFFSET(PO!N$12,ROW(C45)-ROW(C$12),0)) -> Transporte de material betuminoso RR-2C - DMT = 60 Km | D45: =IF(OFFSET(PO!O$12,ROW(D45)-ROW(D$12),0)=0,"",OFFSET(PO!O$12,ROW(D45)-ROW(D$12),0)) -> Txkm | E45: =IF($A45<>"Serviço",0,ROUND(SUMIF($F$9:$P$9,"<>",$F45:$P45),15-13*PO!$X$3)) -> 165.4 | F45: 60.3 | G45: 52.8 | H45: 52.3
A46: =OFFSET(PO!J$12,ROW(A46)-ROW($A$12),0) -> Serviço | B46: =IF($A46=0,"",OFFSET(PO!K$12,ROW(B46)-ROW(B$12),0)) -> 1.4.12. | C46: =IF(OFFSET(PO!N$12,ROW(C46)-ROW(C$12),0)=0,"",OFFSET(PO!N$12,ROW(C46)-ROW(C$12),0)) -> Reperfilagem com concreto asfáltico usinado à quente (e= 4 cm) | D46: =IF(OFFSET(PO!O$12,ROW(D46)-ROW(D$12),0)=0,"",OFFSET(PO!O$12,ROW(D46)-ROW(D$12),0)) -> m³ | E46: =IF($A46<>"Serviço",0,ROUND(SUMIF($F$9:$P$9,"<>",$F46:$P46),15-13*PO!$X$3)) -> 165.4 | F46: 60.3 | G46: 52.8 | H46: 52.3
A47: =OFFSET(PO!J$12,ROW(A47)-ROW($A$12),0) -> Serviço | B47: =IF($A47=0,"",OFFSET(PO!K$12,ROW(B47)-ROW(B$12),0)) -> 1.4.13. | C47: =IF(OFFSET(PO!N$12,ROW(C47)-ROW(C$12),0)=0,"",OFFSET(PO!N$12,ROW(C47)-ROW(C$12),0)) -> Camada de concreto asfáltico usinado à quente (esp.= 3) | D47: =IF(OFFSET(PO!O$12,ROW(D47)-ROW(D$12),0)=0,"",OFFSET(PO!O$12,ROW(D47)-ROW(D$12),0)) -> m³ | E47: =IF($A47<>"Serviço",0,ROUND(SUMIF($F$9:$P$9,"<>",$F47:$P47),15-13*PO!$X$3)) -> 124 | F47: 45.2 | G47: 39.6 | H47: 39.2
A48: =OFFSET(PO!J$12,ROW(A48)-ROW($A$12),0) -> Serviço | B48: =IF($A48=0,"",OFFSET(PO!K$12,ROW(B48)-ROW(B$12),0)) -> 1.4.14. | C48: =IF(OFFSET(PO!N$12,ROW(C48)-ROW(C$12),0)=0,"",OFFSET(PO!N$12,ROW(C48)-ROW(C$12),0)) -> Transporte de massa asfáltica - DMT = 50 Km | D48: =IF(OFFSET(PO!O$12,ROW(D48)-ROW(D$12),0)=0,"",OFFSET(PO!O$12,ROW(D48)-ROW(D$12),0)) -> m³xkm | E48: =IF($A48<>"Serviço",0,ROUND(SUMIF($F$9:$P$9,"<>",$F48:$P48),15-13*PO!$X$3)) -> 14470 | F48: 6330 | G48: 4070 | H48: 4070
A49: =OFFSET(PO!J$12,ROW(A49)-ROW($A$12),0) -> Serviço | B49: =IF($A49=0,"",OFFSET(PO!K$12,ROW(B49)-ROW(B$12),0)) -> 1.4.15. | C49: =IF(OFFSET(PO!N$12,ROW(C49)-ROW(C$12),0)=0,"",OFFSET(PO!N$12,ROW(C49)-ROW(C$12),0)) -> Retirada de meio-fio pré-moldado | D49: =IF(OFFSET(PO!O$12,ROW(D49)-ROW(D$12),0)=0,"",OFFSET(PO!O$12,ROW(D49)-ROW(D$12),0)) -> m | E49: =IF($A49<>"Serviço",0,ROUND(SUMIF($F$9:$P$9,"<>",$F49:$P49),15-13*PO!$X$3)) -> 237 | F49: 237
A50: =OFFSET(PO!J$12,ROW(A50)-ROW($A$12),0) -> Serviço | B50: =IF($A50=0,"",OFFSET(PO!K$12,ROW(B50)-ROW(B$12),0)) -> 1.4.16. | C50: =IF(OFFSET(PO!N$12,ROW(C50)-ROW(C$12),0)=0,"",OFFSET(PO!N$12,ROW(C50)-ROW(C$12),0)) -> Assentamento de meio-fio pré-moldado | D50: =IF(OFFSET(PO!O$12,ROW(D50)-ROW(D$12),0)=0,"",OFFSET(PO!O$12,ROW(D50)-ROW(D$12),0)) -> m | E50: =IF($A50<>"Serviço",0,ROUND(SUMIF($F$9:$P$9,"<>",$F50:$P50),15-13*PO!$X$3)) -> 228 | F50: 118 | G50: 98 | H50: 12
A51: =OFFSET(PO!J$12,ROW(A51)-ROW($A$12),0) -> Serviço | B51: =IF($A51=0,"",OFFSET(PO!K$12,ROW(B51)-ROW(B$12),0)) -> 1.4.17. | C51: =IF(OFFSET(PO!N$12,ROW(C51)-ROW(C$12),0)=0,"",OFFSET(PO!N$12,ROW(C51)-ROW(C$12),0)) -> Meio-fio pré-moldado 15 x 13 x 30 x 50 cm | D51: =IF(OFFSET(PO!O$12,ROW(D51)-ROW(D$12),0)=0,"",OFFSET(PO!O$12,ROW(D51)-ROW(D$12),0)) -> m | E51: =IF($A51<>"Serviço",0,ROUND(SUMIF($F$9:$P$9,"<>",$F51:$P51),15-13*PO!$X$3)) -> 53 | F51: 48 | H51: 5
A52: =OFFSET(PO!J$12,ROW(A52)-ROW($A$12),0) -> Serviço | B52: =IF($A52=0,"",OFFSET(PO!K$12,ROW(B52)-ROW(B$12),0)) -> 1.4.18. | C52: =IF(OFFSET(PO!N$12,ROW(C52)-ROW(C$12),0)=0,"",OFFSET(PO!N$12,ROW(C52)-ROW(C$12),0)) -> Ensaios e laudos atestando teor de cap, densidade, espessura. (A cada 50 m) | D52: =IF(OFFSET(PO!O$12,ROW(D52)-ROW(D$12),0)=0,"",OFFSET(PO!O$12,ROW(D52)-ROW(D$12),0)) -> m³ | E52: =IF($A52<>"Serviço",0,ROUND(SUMIF($F$9:$P$9,"<>",$F52:$P52),15-13*PO!$X$3)) -> 289.4 | F52: 105.5 | G52: 92.3 | H52: 91.6
A53: =OFFSET(PO!J$12,ROW(A53)-ROW($A$12),0) -> Nível 2 | B53: =IF($A53=0,"",OFFSET(PO!K$12,ROW(B53)-ROW(B$12),0)) -> 1.5. | C53: =IF(OFFSET(PO!N$12,ROW(C53)-ROW(C$12),0)=0,"",OFFSET(PO!N$12,ROW(C53)-ROW(C$12),0)) -> SINALIZAÇÃO | D53: =IF(OFFSET(PO!O$12,ROW(D53)-ROW(D$12),0)=0,"",OFFSET(PO!O$12,ROW(D53)-ROW(D$12),0)) ->  | E53: =IF($A53<>"Serviço",0,ROUND(SUMIF($F$9:$P$9,"<>",$F53:$P53),15-13*PO!$X$3)) -> 0 | F53: 0
A54: =OFFSET(PO!J$12,ROW(A54)-ROW($A$12),0) -> Serviço | B54: =IF($A54=0,"",OFFSET(PO!K$12,ROW(B54)-ROW(B$12),0)) -> 1.5.1. | C54: =IF(OFFSET(PO!N$12,ROW(C54)-ROW(C$12),0)=0,"",OFFSET(PO!N$12,ROW(C54)-ROW(C$12),0)) -> Pintura de faixa horizontal amarela - 10 cm | D54: =IF(OFFSET(PO!O$12,ROW(D54)-ROW(D$12),0)=0,"",OFFSET(PO!O$12,ROW(D54)-ROW(D$12),0)) -> m² | E54: =IF($A54<>"Serviço",0,ROUND(SUMIF($F$9:$P$9,"<>",$F54:$P54),15-13*PO!$X$3)) -> 45.5 | F54: 17.4 | G54: 14.3 | H54: 13.8
A55: =OFFSET(PO!J$12,ROW(A55)-ROW($A$12),0) -> Serviço | B55: =IF($A55=0,"",OFFSET(PO!K$12,ROW(B55)-ROW(B$12),0)) -> 1.5.2. | C55: =IF(OFFSET(PO!N$12,ROW(C55)-ROW(C$12),0)=0,"",OFFSET(PO!N$12,ROW(C55)-ROW(C$12),0)) -> Pintura de faixa horizontal branca - 12 cm | D55: =IF(OFFSET(PO!O$12,ROW(D55)-ROW(D$12),0)=0,"",OFFSET(PO!O$12,ROW(D55)-ROW(D$12),0)) -> m² | E55: =IF($A55<>"Serviço",0,ROUND(SUMIF($F$9:$P$9,"<>",$F55:$P55),15-13*PO!$X$3)) -> 50.1 | F55: 19 | G55: 13.6 | H55: 17.5
A56: =OFFSET(PO!J$12,ROW(A56)-ROW($A$12),0) -> Serviço | B56: =IF($A56=0,"",OFFSET(PO!K$12,ROW(B56)-ROW(B$12),0)) -> 1.5.3. | C56: =IF(OFFSET(PO!N$12,ROW(C56)-ROW(C$12),0)=0,"",OFFSET(PO!N$12,ROW(C56)-ROW(C$12),0)) -> Pintura de faixas de pedestres branca - 40 cm | D56: =IF(OFFSET(PO!O$12,ROW(D56)-ROW(D$12),0)=0,"",OFFSET(PO!O$12,ROW(D56)-ROW(D$12),0)) -> m² | E56: =IF($A56<>"Serviço",0,ROUND(SUMIF($F$9:$P$9,"<>",$F56:$P56),15-13*PO!$X$3)) -> 136.8 | F56: 45.6 | G56: 45.6 | H56: 45.6
A57: =OFFSET(PO!J$12,ROW(A57)-ROW($A$12),0) -> Serviço | B57: =IF($A57=0,"",OFFSET(PO!K$12,ROW(B57)-ROW(B$12),0)) -> 1.5.4. | C57: =IF(OFFSET(PO!N$12,ROW(C57)-ROW(C$12),0)=0,"",OFFSET(PO!N$12,ROW(C57)-ROW(C$12),0)) -> Placa Octogonal "PARE" com L=25 cm - Totalmente refletiva, com suporte de aço galvanizado Ø 50 mm | D57: =IF(OFFSET(PO!O$12,ROW(D57)-ROW(D$12),0)=0,"",OFFSET(PO!O$12,ROW(D57)-ROW(D$12),0)) -> unid. | E57: =IF($A57<>"Serviço",0,ROUND(SUMIF($F$9:$P$9,"<>",$F57:$P57),15-13*PO!$X$3)) -> 1 | F57: 1
A58: =OFFSET(PO!J$12,ROW(A58)-ROW($A$12),0) -> Serviço | B58: =IF($A58=0,"",OFFSET(PO!K$12,ROW(B58)-ROW(B$12),0)) -> 1.5.5. | C58: =IF(OFFSET(PO!N$12,ROW(C58)-ROW(C$12),0)=0,"",OFFSET(PO!N$12,ROW(C58)-ROW(C$12),0)) -> Placa de Identificação de ruas - com suporte de aço galvanizado Ø 50 mm | D58: =IF(OFFSET(PO!O$12,ROW(D58)-ROW(D$12),0)=0,"",OFFSET(PO!O$12,ROW(D58)-ROW(D$12),0)) -> unid. | E58: =IF($A58<>"Serviço",0,ROUND(SUMIF($F$9:$P$9,"<>",$F58:$P58),15-13*PO!$X$3)) -> 4 | F58: 1 | G58: 1 | H58: 2
B61: =PO!$K$70 -> Bom Jesus / SC
B62: Local
B64: =PO!$K$73 -> 2018-01-25
B65: Data

Sheet CFF
O1: CFF - | P1: CRONOGRAMA FÍSICO-FINANCEIRO
P2: =CHOOSE(1+LOG(1+2*(TipoOrçamento="BASE")+4*(TipoOrçamento="LICITADO")+8*(TipoOrçamento="REPROGRAMADOAC")+16*(TipoOrçamento="REPROGRAMADONPL"),2),"nada","Cronograma Base para Licitação","Cronograma Licitado","Cronograma Licitado Reprogramado","Cronograma Base para Licitação - Reprogramado") -> Cronograma Base para Licitação
A8: Nível Máx Crono | L8: =IF(MAX($A$14:$A$22)<>MAX(PO!$V$12:$V$59),"ERRO: CRONOGRAMA DESATUALIZADO",IF(OR(COUNTIF($O$16:$X$16,">1")>0,OFFSET($X$17,0,-1)<>$N$14),"ERRO: CRONOGRAMA NÃO FECHA EM 100%","")) -> ERRO: CRONOGRAMA DESATUALIZADO | N8: =IF(TipoOrçamento="REPROGRAMADOAC","Qtde de Medições realizadas","") -> 
A9: 2 | N9: 1 | O9: =IF(AND(TipoOrçamento="REPROGRAMADOAC",$N$9>0),$N$9-1,0) -> 0 | P9: =OFFSET(P9,0,-1)+1 -> 1 | Q9: 2 | R9: 3 | S9: 4 | T9: 5 | U9: 6 | V9: 7 | W9: 8 | AC9: =OFFSET(AC9,0,-1)+1 -> 1
A10: Lista Crono | B10: Último Nível | C10: Nível | D10: Altura | E10: N1 | F10: N2 | G10: N3 | H10: N4 | I10: Czero | J10: Cnível | K10: VTOTAL SOMA | L10: Item | M10: Descrição das Metas / Macrosserviços | N10: Valores Totais (R$) | O10: =IF(TipoOrçamento="REPROGRAMADOAC","Reinício de Obra","Início de Obra")&CHAR(10)&TEXT(DADOS!A48,"dd/mm/aa") -> Início de Obra 01/12/17 | P10: =IF(AND(TipoOrçamento="REPROGRAMADOAC",$N$9>0,N10="Valores Totais (R$)"),"Parcela "&$N$9&" Executado","Parcela "&P$9&CHAR(10)&TEXT(DATE(YEAR(DADOS!$A$48),MONTH(DADOS!$A$48)+P$9-IF(AND(TipoOrçamento="REPROGRAMADOAC",$N$9>0),$N$9,0),1),"mmm/aa")) -> Parcela 1 jan/18 | Q10: =IF(AND(TipoOrçamento="REPROGRAMADOAC",$N$9>0,O10="Valores Totais (R$)"),"Parcela "&$N$9&" Executado","Parcela "&Q$9&CHAR(10)&TEXT(DATE(YEAR(DADOS!$A$48),MONTH(DADOS!$A$48)+Q$9-IF(AND(TipoOrçamento="REPROGRAMADOAC",$N$9>0),$N$9,0),1),"mmm/aa")) -> Parcela 2 fev/18 | R10: =IF(AND(TipoOrçamento="REPROGRAMADOAC",$N$9>0,P10="Valores Totais (R$)"),"Parcela "&$N$9&" Executado","Parcela "&R$9&CHAR(10)&TEXT(DATE(YEAR(DADOS!$A$48),MONTH(DADOS!$A$48)+R$9-IF(AND(TipoOrçamento="REPROGRAMADOAC",$N$9>0),$N$9,0),1),"mmm/aa")) -> Parcela 3 mar/18 | S10: =IF(AND(TipoOrçamento="REPROGRAMADOAC",$N$9>0,Q10="Valores Totais (R$)"),"Parcela "&$N$9&" Executado","Parcela "&S$9&CHAR(10)&TEXT(DATE(YEAR(DADOS!$A$48),MONTH(DADOS!$A$48)+S$9-IF(AND(TipoOrçamento="REPROGRAMADOAC",$N$9>0),$N$9,0),1),"mmm/aa")) -> Parcela 4 abr/18 | T10: =IF(AND(TipoOrçamento="REPROGRAMADOAC",$N$9>0,R10="Valores Totais (R$)"),"Parcela "&$N$9&" Executado","Parcela "&T$9&CHAR(10)&TEXT(DATE(YEAR(DADOS!$A$48),MONTH(DADOS!$A$48)+T$9-IF(AND(TipoOrçamento="REPROGRAMADOAC",$N$9>0),$N$9,0),1),"mmm/aa")) -> Parcela 5 mai/18 | U10: =IF(AND(TipoOrçamento="REPROGRAMADOAC",$N$9>0,S10="Valores Totais (R$)"),"Parcela "&$N$9&" Executado","Parcela "&U$9&CHAR(10)&TEXT(DATE(YEAR(DADOS!$A$48),MONTH(DADOS!$A$48)+U$9-IF(AND(TipoOrçamento="REPROGRAMADOAC",$N$9>0),$N$9,0),1),"mmm/aa")) -> Parcela 6 jun/18 | V10: =IF(AND(TipoOrçamento="REPROGRAMADOAC",$N$9>0,T10="Valores Totais (R$)"),"Parcela "&$N$9&" Executado","Parcela "&V$9&CHAR(10)&TEXT(DATE(YEAR(DADOS!$A$48),MONTH(DADOS!$A$48)+V$9-IF(AND(TipoOrçamento="REPROGRAMADOAC",$N$9>0),$N$9,0),1),"mmm/aa")) -> Parcela 7 jul/18 | W10: =IF(AND(TipoOrçamento="REPROGRAMADOAC",$N$9>0,U10="Valores Totais (R$)"),"Parcela "&$N$9&" Executado","Parcela "&W$9&CHAR(10)&TEXT(DATE(YEAR(DADOS!$A$48),MONTH(DADOS!$A$48)+W$9-IF(AND(TipoOrçamento="REPROGRAMADOAC",$N$9>0),$N$9,0),1),"mmm/aa")) -> Parcela 8 ago/18 | AC10: =IF(AND(TipoOrçamento="REPROGRAMADOAC",$N$9>0,AA10="Valores Totais (R$)"),"Parcela "&$N$9&" Executado","Parcela "&AC$9&CHAR(10)&TEXT(DATE(YEAR(DADOS!$A$48),MONTH(DADOS!$A$48)+AC$9-IF(AND(TipoOrçamento="REPROGRAMADOAC",$N$9>0),$N$9,0),1),"mmm/aa")) -> Parcela 1 jan/18
L11: =INDEX(PO!K$12:K$59,MATCH($A13,PO!$V$12:$V$59,0)) ->  | M11: =INDEX(PO!N$12:N$59,MATCH($A13,PO!$V$12:$V$59,0)) ->  | N11: =IF(ROUND(K13,2)=0,K13,ROUND(K13,2)) ->  | O11: Parcela (%) | P11: =IF($B13,0,P12-IF(ISNUMBER(O12),O12,0)) ->  | Q11: =IF($B13,0,Q12-IF(ISNUMBER(P12),P12,0)) ->  | AC11: =IF($B13,0,AC12-IF(ISNUMBER(AB12),AB12,0)) -> 
O12: Acumulado (%) | P12: =MIN(IF($B13,P11+IF(ISNUMBER(O12),O12,0),P13/$N11),1) ->  | Q12: =MIN(IF($B13,Q11+IF(ISNUMBER(P12),P12,0),Q13/$N11),1) ->  | AC12: =MIN(IF($B13,AC11+IF(ISNUMBER(AB12),AB12,0),AC13/$N11),1) -> 
A13: =OFFSET(A13,-CFF.NumLinha,0)+1 ->  | B13: =$C13>=OFFSET($C13,CFF.NumLinha,0) ->  | C13: =INDEX(PO!A$12:A$59,MATCH($A13,PO!$V$12:$V$59,0)) ->  | D13: =IF(ISERROR(J13),I13,SMALL(I13:J13,1))-1 ->  | E13: =IF($C13=1,OFFSET(E13,-CFF.NumLinha,0)+1,OFFSET(E13,-CFF.NumLinha,0)) ->  | F13: =IF($C13=1,0,IF($C13=2,OFFSET(F13,-CFF.NumLinha,0)+1,OFFSET(F13,-CFF.NumLinha,0))) ->  | G13: =IF(AND($C13<=2,$C13<>0),0,IF($C13=3,OFFSET(G13,-CFF.NumLinha,0)+1,OFFSET(G13,-CFF.NumLinha,0))) ->  | H13: =IF(AND($C13<=3,$C13<>0),0,IF($C13=4,OFFSET(H13,-CFF.NumLinha,0)+1,OFFSET(H13,-CFF.NumLinha,0))) ->  | I13: =MATCH(0,OFFSET($D13,1,$C13,ROW($A$21)-ROW($A13)),0) ->  | J13: =MATCH(OFFSET($D13,0,$C13)+1,OFFSET($D13,1,$C13,ROW($A$21)-ROW($A13)),0) ->  | K13: =ROUND(INDEX(PO!T$12:T$59,MATCH($A13,PO!$V$12:$V$59,0)),2)+10^-12 ->  | O13: Acumulado (R$) | P13: =IF($B13,ROUND(P12*$N11,2),ROUND(SUMIF(OFFSET($B13,1,0,$D13),TRUE,OFFSET(P13,1,0,$D13))/SUMIF(OFFSET($B13,1,0,$D13),TRUE,OFFSET($K13,1,0,$D13))*$N11,2)) ->  | Q13: =IF($B13,ROUND(Q12*$N11,2),ROUND(SUMIF(OFFSET($B13,1,0,$D13),TRUE,OFFSET(Q13,1,0,$D13))/SUMIF(OFFSET($B13,1,0,$D13),TRUE,OFFSET($K13,1,0,$D13))*$N11,2)) ->  | AC13: =IF($B13,ROUND(AC12*$N11,2),ROUND(SUMIF(OFFSET($B13,1,0,$D13),TRUE,OFFSET(AC13,1,0,$D13))/SUMIF(OFFSET($B13,1,0,$D13),TRUE,OFFSET($K13,1,0,$D13))*$N11,2)) -> 
L14: CRONOGRAMA GLOBAL DO LOTE | N14: =IF(PO!$T$12=0,10^-12,PO!$T$12) -> 256995.37 | O14: Parcela (%) | P14: =ROUND(P15/$N14,4) -> 0 | Q14: =ROUND(Q15/$N14,4) -> 0 | R14: 0 | S14: 0 | T14: 0 | U14: 0 | V14: 0 | W14: 0 | AC14: =ROUND(AC15/$N14,4) -> 0
O15: Parcela (R$) | P15: =P17-IF(ISNUMBER(O17),O17,0) -> 0 | Q15: =Q17-IF(ISNUMBER(P17),P17,0) -> 0 | R15: 0 | S15: 0 | T15: 0 | U15: 0 | V15: 0 | W15: 0 | AC15: =AC17-IF(ISNUMBER(AB17),AB17,0) -> 0
O16: Acumulado (%) | P16: =ROUND(P17/$N14,4) -> 0 | Q16: =ROUND(Q17/$N14,4) -> 0 | R16: 0 | S16: 0 | T16: 0 | U16: 0 | V16: 0 | W16: 0 | AC16: =ROUND(AC17/$N14,4) -> 0
A17: 0 | D17: =ROW(D$21)-ROW(D18) -> 3 | O17: Acumulado (R$) | P17: =SUMIF(OFFSET($C17,1,0):$C$21,1,OFFSET(P17,1,0):P$21) -> 0 | Q17: =SUMIF(OFFSET($C17,1,0):$C$21,1,OFFSET(Q17,1,0):Q$21) -> 0 | R17: =SUMIF(OFFSET($C17,1,0):$C$21,1,OFFSET(R17,1,0):R$21) -> 0 | S17: =SUMIF(OFFSET($C17,1,0):$C$21,1,OFFSET(S17,1,0):S$21) -> 0 | T17: =SUMIF(OFFSET($C17,1,0):$C$21,1,OFFSET(T17,1,0):T$21) -> 0 | U17: =SUMIF(OFFSET($C17,1,0):$C$21,1,OFFSET(U17,1,0):U$21) -> 0 | V17: =SUMIF(OFFSET($C17,1,0):$C$21,1,OFFSET(V17,1,0):V$21) -> 0 | W17: =SUMIF(OFFSET($C17,1,0):$C$21,1,OFFSET(W17,1,0):W$21) -> 0 | AC17: =SUMIF(OFFSET($C17,1,0):$C$21,1,OFFSET(AC17,1,0):AC$21) -> 0
L18: =INDEX(PO!K$12:K$59,MATCH($A20,PO!$V$12:$V$59,0)) -> 1. | M18: =INDEX(PO!N$12:N$59,MATCH($A20,PO!$V$12:$V$59,0)) -> PAVIMENTAÇÃO | N18: =IF(ROUND(K20,2)=0,K20,ROUND(K20,2)) -> 256995.37 | O18: Parcela (%) | P18: =IF($B20,0,P19-IF(ISNUMBER(O19),O19,0)) -> 0 | Q18: 0 | R18: 0 | S18: 0 | T18: 0 | U18: 0 | V18: 0 | W18: 0 | AC18: =IF($B20,0,AC19-IF(ISNUMBER(AB19),AB19,0)) -> 0
O19: Acumulado (%) | P19: =MIN(IF($B20,P18+IF(ISNUMBER(O19),O19,0),P20/$N18),1) -> 0 | Q19: 0 | R19: 0 | S19: 0 | T19: 0 | U19: 0 | V19: 0 | W19: 0 | AC19: =MIN(IF($B20,AC18+IF(ISNUMBER(AB19),AB19,0),AC20/$N18),1) -> 0
A20: =OFFSET(A20,-CFF.NumLinha,0)+1 -> 1 | B20: =$C20>=OFFSET($C20,CFF.NumLinha,0) -> TRUE | C20: =INDEX(PO!A$12:A$59,MATCH($A20,PO!$V$12:$V$59,0)) -> 1 | D20: =IF(ISERROR(J20),I20,SMALL(I20:J20,1))-1 -> 0 | E20: =IF($C20=1,OFFSET(E20,-CFF.NumLinha,0)+1,OFFSET(E20,-CFF.NumLinha,0)) -> 1 | F20: =IF($C20=1,0,IF($C20=2,OFFSET(F20,-CFF.NumLinha,0)+1,OFFSET(F20,-CFF.NumLinha,0))) -> 0 | G20: =IF(AND($C20<=2,$C20<>0),0,IF($C20=3,OFFSET(G20,-CFF.NumLinha,0)+1,OFFSET(G20,-CFF.NumLinha,0))) -> 0 | H20: =IF(AND($C20<=3,$C20<>0),0,IF($C20=4,OFFSET(H20,-CFF.NumLinha,0)+1,OFFSET(H20,-CFF.NumLinha,0))) -> 0 | I20: =MATCH(0,OFFSET($D20,1,$C20,ROW($A$21)-ROW($A20)),0) -> 1 | J20: =MATCH(OFFSET($D20,0,$C20)+1,OFFSET($D20,1,$C20,ROW($A$21)-ROW($A20)),0) ->  | K20: =ROUND(INDEX(PO!T$12:T$59,MATCH($A20,PO!$V$12:$V$59,0)),2)+10^-12 -> 256995.37 | O20: Acumulado (R$) | P20: =IF($B20,ROUND(P19*$N18,2),ROUND(SUMIF(OFFSET($B20,1,0,$D20),TRUE,OFFSET(P20,1,0,$D20))/SUMIF(OFFSET($B20,1,0,$D20),TRUE,OFFSET($K20,1,0,$D20))*$N18,2)) -> 0 | Q20: 0 | R20: 0 | S20: 0 | T20: 0 | U20: 0 | V20: 0 | W20: 0 | AC20: =IF($B20,ROUND(AC19*$N18,2),ROUND(SUMIF(OFFSET($B20,1,0,$D20),TRUE,OFFSET(AC20,1,0,$D20))/SUMIF(OFFSET($B20,1,0,$D20),TRUE,OFFSET($K20,1,0,$D20))*$N18,2)) -> 0
C21: -1 | E21: 0 | F21: 0 | G21: 0 | H21: 0
L23: =DADOS!I32 -> 0
L24: Local
L26: =PO!K73 -> 2018-01-25
L27: Data
